Workbook

Sheet BASIN_DESIGN
B2: SEDspread: Sediment Basin Design Tool
B4: User Notes: 1) user is required to know the sediment basin drainage area (C18) and spillway design flow rate (C20); 2) Select regulatory design guidance criteria to follow; 3) Cells or parameters for user to change are in RED, all other cells/parameters will be automatically calculated; 4) û denotes parameter does not comply with regulatory design guidance or site geometry constraints ; 5) û denotes parameter does not comply with regulatory design recommendations; 6) ü denotes design within regulatory guidance or recommendation.
B6: Project & Location: | G6: Designer: | L6: ="Date: "&TEXT(B50, "MM/DD/YYYY") -> Date: 08/03/2015
B8: User Provided Input Parameters (Red) | L8: Regulatory Design Guidance | M8: ALDOT
B10: =IF(C12="2-Yr, 24-Hr","Site Parameters: "&IFERROR(VLOOKUP(C13,GIS_DATA!A13:F40000,2,FALSE)," ")&", "&IFERROR(VLOOKUP(C13,GIS_DATA!A13:F40000,3,FALSE)," "),"Site Parameters") -> Site Parameters: Auburn University, AL | G10: Site Geometry Constraints (Optional) | L10: Storage Sizing
B11: System of Units | C11: U.S. | G11: Max Length Available | H11: 500 | I11: =IF($C$11="SI", "m","ft") -> ft | J11: =IF(C29>H11,CHAR(251),"") ->  | L11: Volume Design Storm Event | M11: =LOOKUP($M$8,REGULATORY!$C$2:$E$2,REGULATORY!C4) -> 2-yr, 24-hr
B12: Sizing Method | C12: 2-Yr, 24-Hr | G12: Max Width Available | H12: 500 | I12: =IF($C$11="SI", "m","ft") -> ft | J12: =IF(C30>H12,CHAR(251),"") ->  | L12: Spillway Design Storm Event | M12: =LOOKUP($M$8,REGULATORY!$C$2:$F$2,REGULATORY!C5) -> 10-yr, 24-hr
B13: =IF(C12="2-Yr, 24-Hr","Project Zip Code","") -> Project Zip Code | C13: 36849 | G13: Max Depth Available | H13: 10 | I13: =IF($C$11="SI", "m","ft") -> ft | J13: =IF(H26>H13,CHAR(251),"") ->  | L13: Min. Volume Requirement | M13: =LOOKUP($M$8,REGULATORY!$C$2:$F$2,REGULATORY!C6) -> 3600 | N13: =IF(BASIN_DESIGN!$C$11="SI", "m³/ha","ft³/ac") -> ft³/ac | O13: =IF(C22>H28,CHAR(251),CHAR(252)) -> ü
B14: =IF(C12="2-Yr, 24-Hr","Site Curve Number (CN)","") -> Site Curve Number (CN) | C14: =VLOOKUP(C13,GIS_DATA!A3:F40000,6,FALSE) -> 86.1299973 | G14: =IF(OR(C29>H11,C30>H12,H26>H13),"WARNING: BASIN DESIGN EXCEEDS SITE GEOMETRY RESTRICTIONS","") ->  | L14: Min. Surface Area Requirement | M14: =LOOKUP($M$8,REGULATORY!$C$2:$F$2,REGULATORY!C7) -> - | N14: =IF(BASIN_DESIGN!$C$11="SI", "m²/m³","ft²/ft³") -> ft²/ft³ | O14: =IF(M14="-"," ",IF(M14>(((C31+2*(C26*H25))*(C32+2*(C26*H25)))/C20),CHAR(251),CHAR(252))) -> 
B15: =IF(C12="2-Yr, 24-Hr","2-Yr, 24-hr Rainfall (P)","") -> 2-Yr, 24-hr Rainfall (P) | C15: =IF($C$11="SI",VLOOKUP(C13,GIS_DATA!A3:F40000,5),VLOOKUP(C13,GIS_DATA!A3:F40000,4,FALSE)) -> 4.1630001 | D15: =IF($C$11="SI", "cm","in.") -> in. | G15: =IF((C21<1),"WARNING: SAFETY FACTOR CANNOT BE LESS THAN 1.00","") ->  | L15: Max. Contributing Drainage Area | M15: =LOOKUP($M$8,REGULATORY!$C$2:$F$2,REGULATORY!C8) -> 10 | N15: =IF(BASIN_DESIGN!$C$11="SI","ha","ac") -> ac | O15: =IF(C18>M15,CHAR(251),CHAR(252)) -> ü
B16: Volume Sizing Factor | C16: =IF(C12="Regulatory",M13,IF(C12="2-Yr, 24-Hr",((C15-0.2*((1000/C14)-10))^2)/(C15+0.8*((1000/C14)-10))*43560/12,C19/C18)) -> 9823.81541 | D16: =IF($C$11="SI", "m³/ha","ft³/ac") -> ft³/ac | G16: =C51 -> -6.839400157e-10 | L16: Recommended Drainage Area | M16: =LOOKUP($M$8,REGULATORY!$C$2:$F$2,REGULATORY!C9) -> 2 | N16: =IF(BASIN_DESIGN!$C$11="SI","ha","ac") -> ac | O16: =IF(C18>M16,CHAR(251),CHAR(252)) -> û
B17: =IF(C12="Manual","","Design Sediment Basin Volume") -> Design Sediment Basin Volume | C17: =IF(C12="Manual","",C16*C18) -> 49119.07705 | D17: =IF($C$11="SI", "m³","ft³") -> ft³ | L17: Geometry
B18: Contributory Drainage Area | C18: 5 | D18: =IF($C$11="SI","ha","ac") -> ac | E18: =IF(C18>M15,CHAR(251),"") ->  | G18: =IFERROR(C16,"ZIP CODE NOT SUPPORTED, ENTER CN AND/OR P MANUALLY") -> 9823.81541 | L18: Recommended L:W Ratio | M18: =LOOKUP($M$8,REGULATORY!$C$2:$F$2,REGULATORY!C11) -> 10 | N18: =IF($C$11="SI", "m/m","ft/ft") -> ft/ft | O18: =IF(M18="-"," ",IF(C25<M18,CHAR(251),CHAR(252))) -> û
B19: =IF(C12="Manual","Design Storm (Sediment Basin) Volume ","" ) ->  | C19: 7000 | D19: =IF($C$11="SI", "m³","ft³") -> ft³ | G19: Surface Skimmer Design | L19: Max. L:W Ratio | M19: =LOOKUP($M$8,REGULATORY!$C$2:$F$2,REGULATORY!C12) -> - | N19: =IF($C$11="SI", "m/m","ft/ft") -> ft/ft | O19: =IF(M19="-"," ",IF(C25>M19,CHAR(251),CHAR(252))) -> 
B20: Spillway Design Flow Rate | C20: 20 | D20: =IF($C$11="SI", "m³/s","ft³/s") -> ft³/s | G20: Desired Detention Time | H20: 72 | I20: hrs | L20: Min. L:W Ratio | M20: =LOOKUP($M$8,REGULATORY!$C$2:$F$2,REGULATORY!C13) -> 2 | N20: =IF($C$11="SI", "m/m","ft/ft") -> ft/ft | O20: =IF(M20>C25,CHAR(251),CHAR(252)) -> ü
B21: Live Storage Safety Factor | C21: 1 | G21: Required Dewatering Rate | H21: =H28/H20 -> 682.2094035 | I21: =IF($C$11="SI", "m³/hr","ft³/hr") -> ft³/hr | L21: Min. Side Slopes H:V | M21: =LOOKUP($M$8,REGULATORY!$C$2:$F$2,REGULATORY!C14) -> 3 | N21: =IF($C$11="SI", "m/m","ft/ft") -> ft/ft | O21: =IF(M21>C26,CHAR(251),CHAR(252)) -> ü
B22: Minimum Regulatory Volume Requirement | C22: =C18*M13 -> 18000 | D22: =IF($C$11="SI", "m³","ft³") -> ft³ | G22: Recommended Orifice Size | H22: =IF(C11="SI",2.8163*(H21)^0.4,0.2665*(H21)^0.4) -> 3.624635118 | I22: =IF($C$11="SI", "cm","in") -> in | L22: Min. Basin Width:Depth Ratio | M22: =LOOKUP($M$8,REGULATORY!$C$2:$F$2,REGULATORY!C15) -> - | N22: =IF($C$11="SI", "m/m","ft/ft") -> ft/ft | O22: =IF(M22="-"," ",IF(C30<(M22*H26),CHAR(251),CHAR(252))) -> 
B23: =IF((C22>H28),"WARNING: MINIMUM VOLUME REQUIREMENTS NOT MET","") ->  | L23: Recommended Live Storage Depth | M23: =LOOKUP($M$8,REGULATORY!$C$2:$F$2,REGULATORY!C16) -> 4 | N23: =IF($C$11="SI", "m","ft") -> ft | O23: =IF(M23="-"," ",IF(C28>M23,CHAR(251),CHAR(252))) -> ü
B24: Basin Configuration | G24: Basin Capacity | L24: Min. Dead Storage Depth | M24: =LOOKUP($M$8,REGULATORY!$C$2:$F$2,REGULATORY!C17) -> 0 | N24: =IF($C$11="SI", "m","ft") -> ft | O24: =IF(M24="-"," ",IF(C27<M24,CHAR(251),CHAR(252))) -> ü
B25: Length to Width Ratio (L:W) | C25: 2 | E25: =IF(M20>C25,CHAR(251),"") ->  | G25: Total Storage Depth (Spillway crest elevation) | H25: =C27+C28 -> 2.25 | I25: =IF($C$11="SI", "m","ft") -> ft | L25: Max. Dead Storage Depth | M25: =LOOKUP($M$8,REGULATORY!$C$2:$F$2,REGULATORY!C18) -> 1 | N25: =IF($C$11="SI", "m","ft") -> ft | O25: =IF(M25="-"," ",IF(C27>M25,CHAR(251),CHAR(252))) -> ü
B26: Side Slopes (H:V) | C26: 3 | E26: =IF(M21>C26,CHAR(251),"") ->  | G26: Total Basin Depth | H26: =C38+C39+C36 -> 4.998676559 | I26: =IF($C$11="SI", "m","ft") -> ft | J26: =IF(M27<H26,CHAR(251),"") ->  | L26: Min. Total Depth | M26: =LOOKUP($M$8,REGULATORY!$C$2:$F$2,REGULATORY!C19) -> 2 | N26: =IF($C$11="SI", "m","ft") -> ft | O26: =IF(M26="-"," ",IF(H26<M26,CHAR(251),CHAR(252))) -> ü
B27: Dead Storage Depth | C27: 0.1 | D27: =IF($C$11="SI", "m","ft") -> ft | E27: =IF(OR(C27>M25,C27<M24),CHAR(251),"") ->  | G27: Dead Storage Volume | H27: =(1/6)*(C27)*(C32*C31+(C32+(C32+2*C26*C27))*(C31+(C31+2*C26*C27))+((C32+2*C26*C27)*(C31+2*C26*C27))) -> 2067.234229 | I27: =IF($C$11="SI", "m³","ft³") -> ft³ | L27: Max. Total Depth | M27: =LOOKUP($M$8,REGULATORY!$C$2:$F$2,REGULATORY!C20) -> 5 | N27: =IF($C$11="SI", "m","ft") -> ft | O27: =IF(M27="-"," ",IF(H26>M27,CHAR(251),CHAR(252))) -> ü
B28: Live Storage Depth | C28: 2.15 | D28: ft | G28: Live Storage Volume | H28: =(1/6)*(C28)*((C32+2*C26*C27)*(C31+2*C26*C27)+((C32+2*C26*C27)+(C32+2*C26*(C28+C27)))*((C31+2*C26*C27)+(C31+2*C26*(C27+C28)))+((C32+2*C26*(C28+C27))*(C31+2*C26*(C27+C28)))) -> 49119.07705 | I28: ft³ | L28: Spillway & Surface Skimmer | M28: =LOOKUP($M$8,REGULATORY!$C$2:$E$2,REGULATORY!C21) -> 0
B29: Top Length | C29: 248.4131223 | D29: ft | E29: =IF(C29>H11,CHAR(251),"") ->  | G29: Total Storage Volume (without overflow) | H29: =(1/6)*(H25)*(C32*C31+(C32+(C32+2*C26*H25))*(C31+(C31+2*C26*H25))+((C32+2*C26*H25)*(C31+2*C26*H25))) -> 51186.31128 | I29: ft³ | L29: Recommended Spillway Length/Flow Ratio | M29: =LOOKUP($M$8,REGULATORY!$C$2:$F$2,REGULATORY!C22) -> - | N29: =IF($C$11="SI", "m/m³","ft/ft³") -> ft/ft³ | O29: =IF(M29="-"," ",IF(C35=C37,CHAR(251),CHAR(252))) -> 
B30: Top Width | C30: =C29/C25 -> 124.2065611 | D30: ft | E30: =IF(C30>H12,CHAR(251),"") ->  | G30: Spillway & Freeboard Volume | H30: =((H26-H25)/6)*((((C29*C30)+(C30+(C32+(2*C26*H25)))*(C29+(C31+(2*C26*H25)))+((C32+(2*C26*H25))*(C31+(2*C26*H25)))))) -> 76612.67805 | I30: ft³ | L30: Min. Spillway Length | M30: =LOOKUP($M$8,REGULATORY!$C$2:$F$2,REGULATORY!C23) -> - | N30: =IF($C$11="SI", "m","ft") -> ft | O30: =IF(M30="-"," ",IF(C35<M30,CHAR(251),CHAR(252))) -> 
B31: Bottom Length | C31: =C29-(2*C26*H26) -> 218.4210629 | D31: ft | G31: Total Basin Volume | H31: =(1/6)*(H26)*(((C29*C30)+((C29+C31)*(C30+C32))+((C31*C32)))) -> 127798.9893 | I31: ft³ | L31: Freeboard above spillway flow | M31: =LOOKUP($M$8,REGULATORY!$C$2:$F$2,REGULATORY!C24) -> 2 | N31: =IF($C$11="SI", "m","ft") -> ft | O31: =IF(C36<M31,CHAR(251),CHAR(252)) -> ü
B32: Bottom Width | C32: =C30-(2*C26*H26) -> 94.21450177 | D32: ft | G32: Total Basin Surface Area | H32: =(C31+(2*C26*H26))*(C32+(2*C26*H26)) -> 30854.53965 | I32: =IF($C$11="SI", "m²","ft²") -> ft² | L32: Min. Detention Time | M32: =LOOKUP($M$8,REGULATORY!$C$2:$F$2,REGULATORY!C25) -> - | N32: hrs | O32: =IF(M32="-"," ",IF(H20<M32,CHAR(251),CHAR(252))) -> 
L33: Max. Detention Time | M33: =LOOKUP($M$8,REGULATORY!$C$2:$F$2,REGULATORY!C26) -> 72 | N33: hrs | O33: =IF(H20>M33,CHAR(251),CHAR(252)) -> ü
B34: Auxiliary Weir Spillway Design | G34: Baffles | L34: Baffles
B35: Spillway Length | C35: 10 | D35: =IF($C$11="SI", "m","ft") -> ft | E35: =IF(C35>C30,CHAR(251),"") ->  | G35: No. of Bays | H35: 4 | J35: =IF(H35<M35,CHAR(251),"") ->  | L35: No. of Bays | M35: =LOOKUP($M$8,REGULATORY!$C$2:$F$2,REGULATORY!C28) -> 4 | O35: =IF(M35="-"," ",IF(H35<M35,CHAR(251),CHAR(252))) -> ü
B36: Freeboard above Crown | C36: 2 | D36: =IF($C$11="SI", "m","ft") -> ft | E36: =IF(C36<M31,CHAR(251),"") ->  | G36: T-Post Spacing | H36: 3 | I36: =IF($C$11="SI", "m","ft") -> ft | J36: =IF(H36>M36,CHAR(251),"") ->  | L36: Baffle T-Post Spacing | M36: =LOOKUP($M$8,REGULATORY!$C$2:$F$2,REGULATORY!C29) -> 4 | N36: =IF($C$11="SI", "m","ft") -> ft | O36: =IF(H36>M36,CHAR(251),CHAR(252)) -> ü
B37: =IF(M29="-"," ","Recommended Spillway Length") ->  | C37: =IF(M29="-"," ",M29*C20) ->  | D37: =IF(M29="-"," ",IF($C$11="SI", "m","ft")) ->  | G37: T-Post Stake Depth | H37: 2 | I37: =IF($C$11="SI", "m","ft") -> ft | J37: =IF(H37<M37,CHAR(251),"") ->  | L37: T-Post Stake Depth | M37: =LOOKUP($M$8,REGULATORY!$C$2:$F$2,REGULATORY!C30) -> 2 | N37: =IF($C$11="SI", "m","ft") -> ft | O37: =IF(H37<M37,CHAR(251),CHAR(252)) -> ü
B38: Spillway Crest Elevation | C38: =H25 -> 2.25 | D38: =IF($C$11="SI", "m","ft") -> ft | G38: Bay Length | H38: =C31/H35 -> 54.60526572 | I38: =IF($C$11="SI", "m","ft") -> ft | L38: Maintenance Requirements
B39: Spillway Height | C39: =(C20/((2/3)^(3/2)*(IF(C11="SI",9.81,32.17))^(0.5)*C35))^(2/3) -> 0.7486765594 | D39: =IF($C$11="SI", "m","ft") -> ft | G39: No. of T-Posts Required | H39: =(H35-1)*(((C32+(2*C26*C40))/H36)+1) -> 115.2065611 | L39: Maintenance Required When: | M39: =LOOKUP($M$8,REGULATORY!$C$2:$F$2,REGULATORY!C32) -> Sediment Reaches 1/3 Height of Bay 1 Baffle
B40: Spillway Flow Elevation | C40: =C38+C39 -> 2.998676559 | D40: =IF($C$11="SI", "m","ft") -> ft | G40: T-Post Length Required | H40: =H37+C40+(IF(C11=1,0.15,0.5)) -> 5.498676559 | I40: =IF($C$11="SI", "m","ft") -> ft
B41: Design Flow Rate | C41: =IF(BASIN_DESIGN!$C$11="SI",1.866*C35*(C39)^(3/2),3.367*C35*(C39)^(3/2)) -> 21.8114466 | D41: =IF($C$11="SI", "m³/s","ft³/s") -> ft³/s | G41: Height of Baffle Required | H41: =C40 -> 2.998676559 | I41: =IF($C$11="SI", "m","ft") -> ft | L41: Other Notes
B42: =IF((C35>C30),"WARNING: SPILLWAY LENGTH EXCEEDS BASIN WIDTH","") ->  | G42: Length of Baffle Required | H42: =2*(H35-1)*((C32+(2*C26*C40))) -> 673.2393668 | I42: =IF($C$11="SI", "m","ft") -> ft | L42: =LOOKUP($M$8,REGULATORY!$C$2:$F$2,REGULATORY!C35) -> -
B45: ="References: "&LOOKUP($M$8,REGULATORY!$C$2:$E$2,REGULATORY!C37) -> References: Alabama Department of Transportation [ALDOT] (2014). "Standard Best Management Practices". Montgomery, AL.; ALDOT (2010). "Sedimentation Basin Recommendations". Montgomery, AL.
B47: Disclaimer: this tool is to be used for design guidance only. The engineer of record is responsible for final design. | L47: © AUBURN UNIVERSITY 2015 - SEDspread v1.0
B50: =NOW() -> 2015-08-03T13:39:35.310
B51: Difference | C51: =IF(C12="Manual",H28-(C19*C21),H28-(C17*C21)) -> -6.839400157e-10

Sheet CUT_SHEET
I13: PROFILE VIEW - LENGTH | Q13: =IF(BASIN_DESIGN!H35=4,"","Note: basin design includes "&BASIN_DESIGN!H35&" bays spaced at "&REGULATORY!A61&" "&BASIN_DESIGN!I38&", check design notes") -> 
I14: NOT TO SCALE
E25: CROSS SECTION VIEW - WIDTH
E26: NOT TO SCALE
J28: DESIGN SUMMARY
J30: LIVE STORAGE VOLUME: | L30: =BASIN_DESIGN!H28 -> 49119.07705 | M30: =BASIN_DESIGN!I28 -> ft³
J31: TOP LENGTH: | L31: =BASIN_DESIGN!C29 -> 248.4131223 | M31: =BASIN_DESIGN!D29 -> ft
J32: TOP WIDTH: | L32: =BASIN_DESIGN!C30 -> 124.2065611 | M32: =BASIN_DESIGN!D30 -> ft
J33: SIDE SLOPES (H:V): | L33: =BASIN_DESIGN!C26&":1" -> 3:1
J34: TOTAL BASIN DEPTH: | L34: =BASIN_DESIGN!H26 -> 4.998676559 | M34: =BASIN_DESIGN!I26 -> ft
J36: AUX. SPILLWAY LENGTH: | L36: =BASIN_DESIGN!C35 -> 10 | M36: =BASIN_DESIGN!D35 -> ft | O36: PROJECT: | T36: DATE:
J37: SKIMMER ORIFACE SIZE: | L37: =BASIN_DESIGN!H22 -> 3.624635118 | M37: =BASIN_DESIGN!I22 -> in | O37: DESCRIPTION: | T37: REVISION:
D38: SPILLWAY DESIGN | J38: BAFFLE HEIGHT: | L38: =ROUND(BASIN_DESIGN!H41,2) -> 3 | M38: =BASIN_DESIGN!I41 -> ft | O38: LOCATION: | T38: DESIGNED BY:
D39: NOT TO SCALE | J39: FOR CONCEPTUAL DESIGN PURPOSES ONLY | O39: © AUBURN UNIVERSITY 2015 - SEDspread v1.0 | T39: CHECKED BY:

Sheet STAGE-STORAGE
A1: Basin Stage-Storage Relationship
A2: Stage | B2: Length | C2: Width | D2: Surface Area | E2: Incremental Volume | F2: Cumulative Volume | G2: Cumulative Volume
A3: =IF(BASIN_DESIGN!$C$11="SI", "m","ft") -> ft | B3: =IF(BASIN_DESIGN!$C$11="SI", "m","ft") -> ft | C3: =IF(BASIN_DESIGN!$C$11="SI", "m","ft") -> ft | D3: =IF(BASIN_DESIGN!$C$11="SI", "m²", "ft²") -> ft² | E3: =IF(BASIN_DESIGN!$C$11="SI", "m³","ft³") -> ft³ | F3: =IF(BASIN_DESIGN!$C$11="SI", "m³","ft³") -> ft³ | G3: =IF(BASIN_DESIGN!$C$11="SI","m³/ha","ft/ac") -> ft/ac
A4: =BASIN_DESIGN!H26 -> 4.998676559 | B4: =$B$104+(2*A4*BASIN_DESIGN!$C$26) -> 248.4131223 | C4: =$C$104+(2*A4*BASIN_DESIGN!$C$26) -> 124.2065611 | D4: =B4*C4 -> 30854.53965 | E4: =(1/6)*(A4-A5)*((C4*B4)+(C4+C5)*(B4+B5)+(B5*C5)) -> 1539.526972 | F4: =(1/6)*(A4)*(B4*C4+(B4+$B$104)*(C4+$C$104)+($B$104*$C$104)) -> 127798.9893 | G4: =IF(BASIN_DESIGN!$C$11="SI",F4/10000,F4/43560) -> 2.933861096
A5: =A4-($A$4/100) -> 4.948689794 | B5: =$B$104+(2*A5*BASIN_DESIGN!$C$26) -> 248.1132017 | C5: =$C$104+(2*A5*BASIN_DESIGN!$C$26) -> 123.9066405 | D5: 30742.87329 | E5: 1533.949628 | F5: 126259.4624 | G5: =IF(BASIN_DESIGN!$C$11="SI",F5/10000,F5/43560) -> 2.89851842
A6: =A5-($A$4/100) -> 4.898703028 | B6: =$B$104+(2*A6*BASIN_DESIGN!$C$26) -> 247.8132811 | C6: =$C$104+(2*A6*BASIN_DESIGN!$C$26) -> 123.6067199 | D6: 30631.38683 | E6: 1528.381277 | F6: 124725.5127 | G6: =IF(BASIN_DESIGN!$C$11="SI",F6/10000,F6/43560) -> 2.863303782
A7: 4.848716263 | B7: =$B$104+(2*A7*BASIN_DESIGN!$C$26) -> 247.5133605 | C7: =$C$104+(2*A7*BASIN_DESIGN!$C$26) -> 123.3067993 | D7: 30520.08028 | E7: 1522.821918 | F7: 123197.1315 | G7: =IF(BASIN_DESIGN!$C$11="SI",F7/10000,F7/43560) -> 2.828216976
A8: 4.798729497 | B8: =$B$104+(2*A8*BASIN_DESIGN!$C$26) -> 247.2134399 | C8: =$C$104+(2*A8*BASIN_DESIGN!$C$26) -> 123.0068788 | D8: 30408.95363 | E8: 1517.271553 | F8: 121674.3095 | G8: =IF(BASIN_DESIGN!$C$11="SI",F8/10000,F8/43560) -> 2.793257795
A9: 4.748742731 | B9: =$B$104+(2*A9*BASIN_DESIGN!$C$26) -> 246.9135193 | C9: =$C$104+(2*A9*BASIN_DESIGN!$C$26) -> 122.7069582 | D9: 30298.00688 | E9: 1511.73018 | F9: 120157.038 | G9: =IF(BASIN_DESIGN!$C$11="SI",F9/10000,F9/43560) -> 2.758426033
A10: 4.698755966 | B10: =$B$104+(2*A10*BASIN_DESIGN!$C$26) -> 246.6135987 | C10: =$C$104+(2*A10*BASIN_DESIGN!$C$26) -> 122.4070376 | D10: 30187.24004 | E10: 1506.197801 | F10: 118645.3078 | G10: =IF(BASIN_DESIGN!$C$11="SI",F10/10000,F10/43560) -> 2.723721483
A11: 4.6487692 | B11: =$B$104+(2*A11*BASIN_DESIGN!$C$26) -> 246.3136781 | C11: =$C$104+(2*A11*BASIN_DESIGN!$C$26) -> 122.107117 | D11: 30076.6531 | E11: 1500.674414 | F11: 117139.11 | G11: =IF(BASIN_DESIGN!$C$11="SI",F11/10000,F11/43560) -> 2.689143939
A12: 4.598782435 | B12: =$B$104+(2*A12*BASIN_DESIGN!$C$26) -> 246.0137575 | C12: =$C$104+(2*A12*BASIN_DESIGN!$C$26) -> 121.8071964 | D12: 29966.24607 | E12: 1495.16002 | F12: 115638.4356 | G12: =IF(BASIN_DESIGN!$C$11="SI",F12/10000,F12/43560) -> 2.654693195
A13: 4.548795669 | B13: =$B$104+(2*A13*BASIN_DESIGN!$C$26) -> 245.7138369 | C13: =$C$104+(2*A13*BASIN_DESIGN!$C$26) -> 121.5072758 | D13: 29856.01895 | E13: 1489.654619 | F13: 114143.2756 | G13: =IF(BASIN_DESIGN!$C$11="SI",F13/10000,F13/43560) -> 2.620369044
A14: 4.498808903 | B14: =$B$104+(2*A14*BASIN_DESIGN!$C$26) -> 245.4139163 | C14: =$C$104+(2*A14*BASIN_DESIGN!$C$26) -> 121.2073552 | D14: 29745.97172 | E14: 1484.158211 | F14: 112653.6209 | G14: =IF(BASIN_DESIGN!$C$11="SI",F14/10000,F14/43560) -> 2.58617128
A15: 4.448822138 | B15: =$B$104+(2*A15*BASIN_DESIGN!$C$26) -> 245.1139957 | C15: =$C$104+(2*A15*BASIN_DESIGN!$C$26) -> 120.9074346 | D15: 29636.10441 | E15: 1478.670795 | F15: 111169.4627 | G15: =IF(BASIN_DESIGN!$C$11="SI",F15/10000,F15/43560) -> 2.552099696
A16: 4.398835372 | B16: =$B$104+(2*A16*BASIN_DESIGN!$C$26) -> 244.8140751 | C16: =$C$104+(2*A16*BASIN_DESIGN!$C$26) -> 120.607514 | D16: 29526.417 | E16: 1473.192373 | F16: 109690.7919 | G16: =IF(BASIN_DESIGN!$C$11="SI",F16/10000,F16/43560) -> 2.518154085
A17: 4.348848607 | B17: =$B$104+(2*A17*BASIN_DESIGN!$C$26) -> 244.5141545 | C17: =$C$104+(2*A17*BASIN_DESIGN!$C$26) -> 120.3075934 | D17: 29416.90949 | E17: 1467.722943 | F17: 108217.5996 | G17: =IF(BASIN_DESIGN!$C$11="SI",F17/10000,F17/43560) -> 2.484334242
A18: 4.298861841 | B18: =$B$104+(2*A18*BASIN_DESIGN!$C$26) -> 244.2142339 | C18: =$C$104+(2*A18*BASIN_DESIGN!$C$26) -> 120.0076728 | D18: 29307.58188 | E18: 1462.262506 | F18: 106749.8766 | G18: =IF(BASIN_DESIGN!$C$11="SI",F18/10000,F18/43560) -> 2.450639959
A19: 4.248875076 | B19: =$B$104+(2*A19*BASIN_DESIGN!$C$26) -> 243.9143134 | C19: =$C$104+(2*A19*BASIN_DESIGN!$C$26) -> 119.7077522 | D19: 29198.43419 | E19: 1456.811062 | F19: 105287.6141 | G19: =IF(BASIN_DESIGN!$C$11="SI",F19/10000,F19/43560) -> 2.417071031
A20: 4.19888831 | B20: =$B$104+(2*A20*BASIN_DESIGN!$C$26) -> 243.6143928 | C20: =$C$104+(2*A20*BASIN_DESIGN!$C$26) -> 119.4078316 | D20: 29089.46639 | E20: 1451.368611 | F20: 103830.8031 | G20: =IF(BASIN_DESIGN!$C$11="SI",F20/10000,F20/43560) -> 2.383627251
A21: 4.148901544 | B21: =$B$104+(2*A21*BASIN_DESIGN!$C$26) -> 243.3144722 | C21: =$C$104+(2*A21*BASIN_DESIGN!$C$26) -> 119.107911 | D21: 28980.6785 | E21: 1445.935153 | F21: 102379.4344 | G21: =IF(BASIN_DESIGN!$C$11="SI",F21/10000,F21/43560) -> 2.350308412
A22: 4.098914779 | B22: =$B$104+(2*A22*BASIN_DESIGN!$C$26) -> 243.0145516 | C22: =$C$104+(2*A22*BASIN_DESIGN!$C$26) -> 118.8079904 | D22: 28872.07052 | E22: 1440.510687 | F22: 100933.4993 | G22: =IF(BASIN_DESIGN!$C$11="SI",F22/10000,F22/43560) -> 2.317114309
A23: 4.048928013 | B23: =$B$104+(2*A23*BASIN_DESIGN!$C$26) -> 242.714631 | C23: =$C$104+(2*A23*BASIN_DESIGN!$C$26) -> 118.5080698 | D23: 28763.64244 | E23: 1435.095215 | F23: 99492.98861 | G23: =IF(BASIN_DESIGN!$C$11="SI",F23/10000,F23/43560) -> 2.284044734
A24: 3.998941248 | B24: =$B$104+(2*A24*BASIN_DESIGN!$C$26) -> 242.4147104 | C24: =$C$104+(2*A24*BASIN_DESIGN!$C$26) -> 118.2081493 | D24: 28655.39427 | E24: =(1/6)*(A24-A25)*((C24*B24)+(C24+C25)*(B24+B25)+(B25*C25)) -> 1429.688735 | F24: 98057.89339 | G24: =IF(BASIN_DESIGN!$C$11="SI",F24/10000,F24/43560) -> 2.251099481
A25: 3.948954482 | B25: =$B$104+(2*A25*BASIN_DESIGN!$C$26) -> 242.1147898 | C25: =$C$104+(2*A25*BASIN_DESIGN!$C$26) -> 117.9082287 | D25: 28547.326 | E25: 1424.291248 | F25: 96628.20466 | G25: =IF(BASIN_DESIGN!$C$11="SI",F25/10000,F25/43560) -> 2.218278344
A26: 3.898967716 | B26: =$B$104+(2*A26*BASIN_DESIGN!$C$26) -> 241.8148692 | C26: =$C$104+(2*A26*BASIN_DESIGN!$C$26) -> 117.6083081 | D26: 28439.43763 | E26: 1418.902754 | F26: 95203.91341 | G26: =IF(BASIN_DESIGN!$C$11="SI",F26/10000,F26/43560) -> 2.185581116
A27: 3.848980951 | B27: =$B$104+(2*A27*BASIN_DESIGN!$C$26) -> 241.5149486 | C27: =$C$104+(2*A27*BASIN_DESIGN!$C$26) -> 117.3083875 | D27: 28331.72917 | E27: 1413.523253 | F27: 93785.01065 | G27: =IF(BASIN_DESIGN!$C$11="SI",F27/10000,F27/43560) -> 2.153007591
A28: 3.798994185 | B28: =$B$104+(2*A28*BASIN_DESIGN!$C$26) -> 241.215028 | C28: =$C$104+(2*A28*BASIN_DESIGN!$C$26) -> 117.0084669 | D28: 28224.20062 | E28: 1408.152745 | F28: 92371.4874 | G28: =IF(BASIN_DESIGN!$C$11="SI",F28/10000,F28/43560) -> 2.120557562
A29: 3.74900742 | B29: =$B$104+(2*A29*BASIN_DESIGN!$C$26) -> 240.9151074 | C29: =$C$104+(2*A29*BASIN_DESIGN!$C$26) -> 116.7085463 | D29: 28116.85197 | E29: 1402.79123 | F29: 90963.33466 | G29: =IF(BASIN_DESIGN!$C$11="SI",F29/10000,F29/43560) -> 2.088230823
A30: 3.699020654 | B30: =$B$104+(2*A30*BASIN_DESIGN!$C$26) -> 240.6151868 | C30: =$C$104+(2*A30*BASIN_DESIGN!$C$26) -> 116.4086257 | D30: 28009.68322 | E30: 1397.438707 | F30: 89560.54343 | G30: =IF(BASIN_DESIGN!$C$11="SI",F30/10000,F30/43560) -> 2.056027168
A31: 3.649033888 | B31: =$B$104+(2*A31*BASIN_DESIGN!$C$26) -> 240.3152662 | C31: =$C$104+(2*A31*BASIN_DESIGN!$C$26) -> 116.1087051 | D31: 27902.69438 | E31: 1392.095177 | F31: 88163.10472 | G31: =IF(BASIN_DESIGN!$C$11="SI",F31/10000,F31/43560) -> 2.023946389
A32: 3.599047123 | B32: =$B$104+(2*A32*BASIN_DESIGN!$C$26) -> 240.0153456 | C32: =$C$104+(2*A32*BASIN_DESIGN!$C$26) -> 115.8087845 | D32: 27795.88544 | E32: 1386.76064 | F32: 86771.00954 | G32: =IF(BASIN_DESIGN!$C$11="SI",F32/10000,F32/43560) -> 1.991988281
A33: 3.549060357 | B33: =$B$104+(2*A33*BASIN_DESIGN!$C$26) -> 239.715425 | C33: =$C$104+(2*A33*BASIN_DESIGN!$C$26) -> 115.5088639 | D33: 27689.25641 | E33: 1381.435096 | F33: 85384.2489 | G33: =IF(BASIN_DESIGN!$C$11="SI",F33/10000,F33/43560) -> 1.960152638
A34: 3.499073592 | B34: =$B$104+(2*A34*BASIN_DESIGN!$C$26) -> 239.4155044 | C34: =$C$104+(2*A34*BASIN_DESIGN!$C$26) -> 115.2089433 | D34: 27582.80728 | E34: 1376.118545 | F34: 84002.8138 | G34: =IF(BASIN_DESIGN!$C$11="SI",F34/10000,F34/43560) -> 1.928439252
A35: 3.449086826 | B35: =$B$104+(2*A35*BASIN_DESIGN!$C$26) -> 239.1155839 | C35: =$C$104+(2*A35*BASIN_DESIGN!$C$26) -> 114.9090227 | D35: 27476.53806 | E35: 1370.810987 | F35: 82626.69526 | G35: =IF(BASIN_DESIGN!$C$11="SI",F35/10000,F35/43560) -> 1.896847917
A36: 3.39910006 | B36: =$B$104+(2*A36*BASIN_DESIGN!$C$26) -> 238.8156633 | C36: =$C$104+(2*A36*BASIN_DESIGN!$C$26) -> 114.6091021 | D36: =B36*C36 -> 27370.44874 | E36: 1365.512422 | F36: =(1/6)*(A36)*(B36*C36+(B36+$B$104)*(C36+$C$104)+($B$104*$C$104)) -> 81255.88427 | G36: =IF(BASIN_DESIGN!$C$11="SI",F36/10000,F36/43560) -> 1.865378427
A37: 3.349113295 | B37: =$B$104+(2*A37*BASIN_DESIGN!$C$26) -> 238.5157427 | C37: =$C$104+(2*A37*BASIN_DESIGN!$C$26) -> 114.3091815 | D37: 27264.53933 | E37: 1360.222849 | F37: 79890.37185 | G37: =IF(BASIN_DESIGN!$C$11="SI",F37/10000,F37/43560) -> 1.834030575
A38: 3.299126529 | B38: =$B$104+(2*A38*BASIN_DESIGN!$C$26) -> 238.2158221 | C38: =$C$104+(2*A38*BASIN_DESIGN!$C$26) -> 114.0092609 | D38: 27158.80982 | E38: 1354.942269 | F38: 78530.149 | G38: =IF(BASIN_DESIGN!$C$11="SI",F38/10000,F38/43560) -> 1.802804155
A39: 3.249139764 | B39: =$B$104+(2*A39*BASIN_DESIGN!$C$26) -> 237.9159015 | C39: =$C$104+(2*A39*BASIN_DESIGN!$C$26) -> 113.7093404 | D39: 27053.26022 | E39: 1349.670682 | F39: 77175.20673 | G39: =IF(BASIN_DESIGN!$C$11="SI",F39/10000,F39/43560) -> 1.771698961
A40: 3.199152998 | B40: =$B$104+(2*A40*BASIN_DESIGN!$C$26) -> 237.6159809 | C40: =$C$104+(2*A40*BASIN_DESIGN!$C$26) -> 113.4094198 | D40: 26947.89052 | E40: 1344.408088 | F40: 75825.53605 | G40: =IF(BASIN_DESIGN!$C$11="SI",F40/10000,F40/43560) -> 1.740714785
A41: 3.149166232 | B41: =$B$104+(2*A41*BASIN_DESIGN!$C$26) -> 237.3160603 | C41: =$C$104+(2*A41*BASIN_DESIGN!$C$26) -> 113.1094992 | D41: 26842.70072 | E41: 1339.154487 | F41: 74481.12796 | G41: =IF(BASIN_DESIGN!$C$11="SI",F41/10000,F41/43560) -> 1.709851422
A42: 3.099179467 | B42: =$B$104+(2*A42*BASIN_DESIGN!$C$26) -> 237.0161397 | C42: =$C$104+(2*A42*BASIN_DESIGN!$C$26) -> 112.8095786 | D42: 26737.69083 | E42: 1333.909879 | F42: 73141.97347 | G42: =IF(BASIN_DESIGN!$C$11="SI",F42/10000,F42/43560) -> 1.679108666
A43: 3.049192701 | B43: =$B$104+(2*A43*BASIN_DESIGN!$C$26) -> 236.7162191 | C43: =$C$104+(2*A43*BASIN_DESIGN!$C$26) -> 112.509658 | D43: 26632.86085 | E43: 1328.674263 | F43: 71808.0636 | G43: =IF(BASIN_DESIGN!$C$11="SI",F43/10000,F43/43560) -> 1.648486308
A44: 2.999205936 | B44: =$B$104+(2*A44*BASIN_DESIGN!$C$26) -> 236.4162985 | C44: =$C$104+(2*A44*BASIN_DESIGN!$C$26) -> 112.2097374 | D44: =B44*C44 -> 26528.21077 | E44: 1323.447641 | F44: =(1/6)*(A44)*(B44*C44+(B44+$B$104)*(C44+$C$104)+($B$104*$C$104)) -> 70479.38933 | G44: =IF(BASIN_DESIGN!$C$11="SI",F44/10000,F44/43560) -> 1.617984144
A45: 2.94921917 | B45: =$B$104+(2*A45*BASIN_DESIGN!$C$26) -> 236.1163779 | C45: =$C$104+(2*A45*BASIN_DESIGN!$C$26) -> 111.9098168 | D45: 26423.74059 | E45: 1318.230011 | F45: 69155.94169 | G45: =IF(BASIN_DESIGN!$C$11="SI",F45/10000,F45/43560) -> 1.587601967
A46: 2.899232404 | B46: =$B$104+(2*A46*BASIN_DESIGN!$C$26) -> 235.8164573 | C46: =$C$104+(2*A46*BASIN_DESIGN!$C$26) -> 111.6098962 | D46: 26319.45032 | E46: 1313.021374 | F46: 67837.71168 | G46: =IF(BASIN_DESIGN!$C$11="SI",F46/10000,F46/43560) -> 1.55733957
A47: 2.849245639 | B47: =$B$104+(2*A47*BASIN_DESIGN!$C$26) -> 235.5165367 | C47: =$C$104+(2*A47*BASIN_DESIGN!$C$26) -> 111.3099756 | D47: 26215.33996 | E47: 1307.82173 | F47: 66524.69031 | G47: =IF(BASIN_DESIGN!$C$11="SI",F47/10000,F47/43560) -> 1.527196747
A48: 2.799258873 | B48: =$B$104+(2*A48*BASIN_DESIGN!$C$26) -> 235.2166161 | C48: =$C$104+(2*A48*BASIN_DESIGN!$C$26) -> 111.010055 | D48: 26111.4095 | E48: 1302.631079 | F48: 65216.86858 | G48: =IF(BASIN_DESIGN!$C$11="SI",F48/10000,F48/43560) -> 1.497173291
A49: 2.749272108 | B49: =$B$104+(2*A49*BASIN_DESIGN!$C$26) -> 234.9166955 | C49: =$C$104+(2*A49*BASIN_DESIGN!$C$26) -> 110.7101344 | D49: 26007.65894 | E49: 1297.449421 | F49: 63914.2375 | G49: =IF(BASIN_DESIGN!$C$11="SI",F49/10000,F49/43560) -> 1.467268997
A50: 2.699285342 | B50: =$B$104+(2*A50*BASIN_DESIGN!$C$26) -> 234.616775 | C50: =$C$104+(2*A50*BASIN_DESIGN!$C$26) -> 110.4102138 | D50: 25904.08829 | E50: 1292.276755 | F50: 62616.78808 | G50: =IF(BASIN_DESIGN!$C$11="SI",F50/10000,F50/43560) -> 1.437483656
A51: 2.649298576 | B51: =$B$104+(2*A51*BASIN_DESIGN!$C$26) -> 234.3168544 | C51: =$C$104+(2*A51*BASIN_DESIGN!$C$26) -> 110.1102932 | D51: 25800.69754 | E51: 1287.113083 | F51: 61324.51132 | G51: =IF(BASIN_DESIGN!$C$11="SI",F51/10000,F51/43560) -> 1.407817064
A52: 2.599311811 | B52: =$B$104+(2*A52*BASIN_DESIGN!$C$26) -> 234.0169338 | C52: =$C$104+(2*A52*BASIN_DESIGN!$C$26) -> 109.8103726 | D52: 25697.4867 | E52: 1281.958403 | F52: 60037.39824 | G52: =IF(BASIN_DESIGN!$C$11="SI",F52/10000,F52/43560) -> 1.378269014
A53: 2.549325045 | B53: =$B$104+(2*A53*BASIN_DESIGN!$C$26) -> 233.7170132 | C53: =$C$104+(2*A53*BASIN_DESIGN!$C$26) -> 109.510452 | D53: 25594.45576 | E53: 1276.812716 | F53: 58755.43983 | G53: =IF(BASIN_DESIGN!$C$11="SI",F53/10000,F53/43560) -> 1.348839298
A54: 2.49933828 | B54: =$B$104+(2*A54*BASIN_DESIGN!$C$26) -> 233.4170926 | C54: =$C$104+(2*A54*BASIN_DESIGN!$C$26) -> 109.2105314 | D54: 25491.60473 | E54: 1271.676022 | F54: 57478.62712 | G54: =IF(BASIN_DESIGN!$C$11="SI",F54/10000,F54/43560) -> 1.319527712
A55: 2.449351514 | B55: =$B$104+(2*A55*BASIN_DESIGN!$C$26) -> 233.117172 | C55: =$C$104+(2*A55*BASIN_DESIGN!$C$26) -> 108.9106109 | D55: 25388.9336 | E55: 1266.548321 | F55: 56206.9511 | G55: =IF(BASIN_DESIGN!$C$11="SI",F55/10000,F55/43560) -> 1.290334047
A56: 2.399364749 | B56: =$B$104+(2*A56*BASIN_DESIGN!$C$26) -> 232.8172514 | C56: =$C$104+(2*A56*BASIN_DESIGN!$C$26) -> 108.6106903 | D56: 25286.44238 | E56: 1261.429613 | F56: 54940.40278 | G56: =IF(BASIN_DESIGN!$C$11="SI",F56/10000,F56/43560) -> 1.261258099
A57: 2.349377983 | B57: =$B$104+(2*A57*BASIN_DESIGN!$C$26) -> 232.5173308 | C57: =$C$104+(2*A57*BASIN_DESIGN!$C$26) -> 108.3107697 | D57: 25184.13106 | E57: 1256.319897 | F57: 53678.97316 | G57: =IF(BASIN_DESIGN!$C$11="SI",F57/10000,F57/43560) -> 1.232299659
A58: 2.299391217 | B58: =$B$104+(2*A58*BASIN_DESIGN!$C$26) -> 232.2174102 | C58: =$C$104+(2*A58*BASIN_DESIGN!$C$26) -> 108.0108491 | D58: 25081.99965 | E58: 1251.219174 | F58: 52422.65327 | G58: =IF(BASIN_DESIGN!$C$11="SI",F58/10000,F58/43560) -> 1.203458523
A59: 2.249404452 | B59: =$B$104+(2*A59*BASIN_DESIGN!$C$26) -> 231.9174896 | C59: =$C$104+(2*A59*BASIN_DESIGN!$C$26) -> 107.7109285 | D59: 24980.04814 | E59: 1246.127445 | F59: 51171.43409 | G59: =IF(BASIN_DESIGN!$C$11="SI",F59/10000,F59/43560) -> 1.174734483
A60: 2.199417686 | B60: =$B$104+(2*A60*BASIN_DESIGN!$C$26) -> 231.617569 | C60: =$C$104+(2*A60*BASIN_DESIGN!$C$26) -> 107.4110079 | D60: 24878.27653 | E60: 1241.044708 | F60: 49925.30665 | G60: =IF(BASIN_DESIGN!$C$11="SI",F60/10000,F60/43560) -> 1.146127333
A61: 2.149430921 | B61: =$B$104+(2*A61*BASIN_DESIGN!$C$26) -> 231.3176484 | C61: =$C$104+(2*A61*BASIN_DESIGN!$C$26) -> 107.1110873 | D61: 24776.68483 | E61: 1235.970964 | F61: 48684.26194 | G61: =IF(BASIN_DESIGN!$C$11="SI",F61/10000,F61/43560) -> 1.117636867
A62: 2.099444155 | B62: =$B$104+(2*A62*BASIN_DESIGN!$C$26) -> 231.0177278 | C62: =$C$104+(2*A62*BASIN_DESIGN!$C$26) -> 106.8111667 | D62: 24675.27304 | E62: 1230.906213 | F62: 47448.29098 | G62: =IF(BASIN_DESIGN!$C$11="SI",F62/10000,F62/43560) -> 1.089262878
A63: 2.049457389 | B63: =$B$104+(2*A63*BASIN_DESIGN!$C$26) -> 230.7178072 | C63: =$C$104+(2*A63*BASIN_DESIGN!$C$26) -> 106.5112461 | D63: 24574.04115 | E63: 1225.850454 | F63: 46217.38476 | G63: =IF(BASIN_DESIGN!$C$11="SI",F63/10000,F63/43560) -> 1.06100516
A64: 1.999470624 | B64: =$B$104+(2*A64*BASIN_DESIGN!$C$26) -> 230.4178866 | C64: =$C$104+(2*A64*BASIN_DESIGN!$C$26) -> 106.2113255 | D64: 24472.98916 | E64: 1220.803689 | F64: 44991.53431 | G64: =IF(BASIN_DESIGN!$C$11="SI",F64/10000,F64/43560) -> 1.032863506
A65: 1.949483858 | B65: =$B$104+(2*A65*BASIN_DESIGN!$C$26) -> 230.117966 | C65: =$C$104+(2*A65*BASIN_DESIGN!$C$26) -> 105.9114049 | D65: 24372.11708 | E65: 1215.765916 | F65: 43770.73062 | G65: =IF(BASIN_DESIGN!$C$11="SI",F65/10000,F65/43560) -> 1.004837709
A66: 1.899497093 | B66: =$B$104+(2*A66*BASIN_DESIGN!$C$26) -> 229.8180455 | C66: =$C$104+(2*A66*BASIN_DESIGN!$C$26) -> 105.6114843 | D66: 24271.42491 | E66: 1210.737136 | F66: 42554.9647 | G66: =IF(BASIN_DESIGN!$C$11="SI",F66/10000,F66/43560) -> 0.9769275644
A67: 1.849510327 | B67: =$B$104+(2*A67*BASIN_DESIGN!$C$26) -> 229.5181249 | C67: =$C$104+(2*A67*BASIN_DESIGN!$C$26) -> 105.3115637 | D67: 24170.91263 | E67: 1205.717349 | F67: 41344.22757 | G67: =IF(BASIN_DESIGN!$C$11="SI",F67/10000,F67/43560) -> 0.9491328643
A68: 1.799523561 | B68: =$B$104+(2*A68*BASIN_DESIGN!$C$26) -> 229.2182043 | C68: =$C$104+(2*A68*BASIN_DESIGN!$C$26) -> 105.0116431 | D68: 24070.58027 | E68: 1200.706555 | F68: 40138.51022 | G68: =IF(BASIN_DESIGN!$C$11="SI",F68/10000,F68/43560) -> 0.9214534026
A69: 1.749536796 | B69: =$B$104+(2*A69*BASIN_DESIGN!$C$26) -> 228.9182837 | C69: =$C$104+(2*A69*BASIN_DESIGN!$C$26) -> 104.7117225 | D69: 23970.42781 | E69: 1195.704754 | F69: 38937.80366 | G69: =IF(BASIN_DESIGN!$C$11="SI",F69/10000,F69/43560) -> 0.893888973
A70: =A69-($A$4/100) -> 1.69955003 | B70: =$B$104+(2*A70*BASIN_DESIGN!$C$26) -> 228.6183631 | C70: =$C$104+(2*A70*BASIN_DESIGN!$C$26) -> 104.411802 | D70: 23870.45525 | E70: 1190.711946 | F70: 37742.09891 | G70: =IF(BASIN_DESIGN!$C$11="SI",F70/10000,F70/43560) -> 0.8664393689
A71: 1.649563265 | B71: =$B$104+(2*A71*BASIN_DESIGN!$C$26) -> 228.3184425 | C71: =$C$104+(2*A71*BASIN_DESIGN!$C$26) -> 104.1118814 | D71: 23770.6626 | E71: 1185.72813 | F71: 36551.38696 | G71: =IF(BASIN_DESIGN!$C$11="SI",F71/10000,F71/43560) -> 0.8391043839
A72: 1.599576499 | B72: =$B$104+(2*A72*BASIN_DESIGN!$C$26) -> 228.0185219 | C72: =$C$104+(2*A72*BASIN_DESIGN!$C$26) -> 103.8119608 | D72: 23671.04985 | E72: 1180.753308 | F72: 35365.65883 | G72: =IF(BASIN_DESIGN!$C$11="SI",F72/10000,F72/43560) -> 0.8118838116
A73: 1.549589733 | B73: =$B$104+(2*A73*BASIN_DESIGN!$C$26) -> 227.7186013 | C73: =$C$104+(2*A73*BASIN_DESIGN!$C$26) -> 103.5120402 | D73: 23571.61701 | E73: 1175.787478 | F73: 34184.90553 | G73: =IF(BASIN_DESIGN!$C$11="SI",F73/10000,F73/43560) -> 0.7847774455
A74: 1.499602968 | B74: =$B$104+(2*A74*BASIN_DESIGN!$C$26) -> 227.4186807 | C74: =$C$104+(2*A74*BASIN_DESIGN!$C$26) -> 103.2121196 | D74: 23472.36407 | E74: 1170.830641 | F74: 33009.11805 | G74: =IF(BASIN_DESIGN!$C$11="SI",F74/10000,F74/43560) -> 0.7577850791
A75: 1.449616202 | B75: =$B$104+(2*A75*BASIN_DESIGN!$C$26) -> 227.1187601 | C75: =$C$104+(2*A75*BASIN_DESIGN!$C$26) -> 102.912199 | D75: 23373.29103 | E75: 1165.882797 | F75: 31838.28741 | G75: =IF(BASIN_DESIGN!$C$11="SI",F75/10000,F75/43560) -> 0.7309065061
A76: 1.399629437 | B76: =$B$104+(2*A76*BASIN_DESIGN!$C$26) -> 226.8188395 | C76: =$C$104+(2*A76*BASIN_DESIGN!$C$26) -> 102.6122784 | D76: 23274.3979 | E76: 1160.943946 | F76: 30672.40461 | G76: =IF(BASIN_DESIGN!$C$11="SI",F76/10000,F76/43560) -> 0.70414152
A77: 1.349642671 | B77: =$B$104+(2*A77*BASIN_DESIGN!$C$26) -> 226.5189189 | C77: =$C$104+(2*A77*BASIN_DESIGN!$C$26) -> 102.3123578 | D77: 23175.68468 | E77: 1156.014087 | F77: 29511.46066 | G77: =IF(BASIN_DESIGN!$C$11="SI",F77/10000,F77/43560) -> 0.6774899142
A78: 1.299655905 | B78: =$B$104+(2*A78*BASIN_DESIGN!$C$26) -> 226.2189983 | C78: =$C$104+(2*A78*BASIN_DESIGN!$C$26) -> 102.0124372 | D78: 23077.15136 | E78: 1151.093222 | F78: 28355.44658 | G78: =IF(BASIN_DESIGN!$C$11="SI",F78/10000,F78/43560) -> 0.6509514825
A79: 1.24966914 | B79: =$B$104+(2*A79*BASIN_DESIGN!$C$26) -> 225.9190777 | C79: =$C$104+(2*A79*BASIN_DESIGN!$C$26) -> 101.7125166 | D79: 22978.79795 | E79: 1146.181349 | F79: 27204.35336 | G79: =IF(BASIN_DESIGN!$C$11="SI",F79/10000,F79/43560) -> 0.6245260183
A80: 1.199682374 | B80: =$B$104+(2*A80*BASIN_DESIGN!$C$26) -> 225.6191571 | C80: =$C$104+(2*A80*BASIN_DESIGN!$C$26) -> 101.412596 | D80: 22880.62444 | E80: 1141.278469 | F80: 26058.17201 | G80: =IF(BASIN_DESIGN!$C$11="SI",F80/10000,F80/43560) -> 0.5982133151
A81: 1.149695609 | B81: =$B$104+(2*A81*BASIN_DESIGN!$C$26) -> 225.3192366 | C81: =$C$104+(2*A81*BASIN_DESIGN!$C$26) -> 101.1126754 | D81: 22782.63083 | E81: 1136.384582 | F81: 24916.89354 | G81: =IF(BASIN_DESIGN!$C$11="SI",F81/10000,F81/43560) -> 0.5720131666
A82: 1.099708843 | B82: =$B$104+(2*A82*BASIN_DESIGN!$C$26) -> 225.019316 | C82: =$C$104+(2*A82*BASIN_DESIGN!$C$26) -> 100.8127548 | D82: 22684.81713 | E82: 1131.499688 | F82: 23780.50895 | G82: =IF(BASIN_DESIGN!$C$11="SI",F82/10000,F82/43560) -> 0.5459253663
A83: 1.049722077 | B83: =$B$104+(2*A83*BASIN_DESIGN!$C$26) -> 224.7193954 | C83: =$C$104+(2*A83*BASIN_DESIGN!$C$26) -> 100.5128342 | D83: 22587.18334 | E83: 1126.623787 | F83: 22649.00927 | G83: =IF(BASIN_DESIGN!$C$11="SI",F83/10000,F83/43560) -> 0.5199497077
A84: 0.9997353119 | B84: =$B$104+(2*A84*BASIN_DESIGN!$C$26) -> 224.4194748 | C84: =$C$104+(2*A84*BASIN_DESIGN!$C$26) -> 100.2129136 | D84: 22489.72944 | E84: 1121.756879 | F84: 21522.38548 | G84: =IF(BASIN_DESIGN!$C$11="SI",F84/10000,F84/43560) -> 0.4940859844
A85: 0.9497485463 | B85: =$B$104+(2*A85*BASIN_DESIGN!$C$26) -> 224.1195542 | C85: =$C$104+(2*A85*BASIN_DESIGN!$C$26) -> 99.91299305 | D85: 22392.45546 | E85: 1116.898963 | F85: 20400.6286 | G85: =IF(BASIN_DESIGN!$C$11="SI",F85/10000,F85/43560) -> 0.4683339899
A86: 0.8997617807 | B86: =$B$104+(2*A86*BASIN_DESIGN!$C$26) -> 223.8196336 | C86: =$C$104+(2*A86*BASIN_DESIGN!$C$26) -> 99.61307246 | D86: 22295.36138 | E86: 1112.05004 | F86: 19283.72964 | G86: =IF(BASIN_DESIGN!$C$11="SI",F86/10000,F86/43560) -> 0.4426935178
A87: 0.8497750151 | B87: =$B$104+(2*A87*BASIN_DESIGN!$C$26) -> 223.519713 | C87: =$C$104+(2*A87*BASIN_DESIGN!$C$26) -> 99.31315186 | D87: 22198.4472 | E87: 1107.210111 | F87: 18171.6796 | G87: =IF(BASIN_DESIGN!$C$11="SI",F87/10000,F87/43560) -> 0.4171643617
A88: 0.7997882495 | B88: =$B$104+(2*A88*BASIN_DESIGN!$C$26) -> 223.2197924 | C88: =$C$104+(2*A88*BASIN_DESIGN!$C$26) -> 99.01323127 | D88: 22101.71293 | E88: =(1/6)*(A88-A89)*((C88*B88)+(C88+C89)*(B88+B89)+(B89*C89)) -> 1102.379174 | F88: 17064.46949 | G88: =IF(BASIN_DESIGN!$C$11="SI",F88/10000,F88/43560) -> 0.3917463151
A89: 0.7498014839 | B89: =$B$104+(2*A89*BASIN_DESIGN!$C$26) -> 222.9198718 | C89: =$C$104+(2*A89*BASIN_DESIGN!$C$26) -> 98.71331067 | D89: 22005.15856 | E89: 1097.55723 | F89: 15962.09031 | G89: =IF(BASIN_DESIGN!$C$11="SI",F89/10000,F89/43560) -> 0.3664391715
A90: 0.6998147183 | B90: =$B$104+(2*A90*BASIN_DESIGN!$C$26) -> 222.6199512 | C90: =$C$104+(2*A90*BASIN_DESIGN!$C$26) -> 98.41339008 | D90: 21908.7841 | E90: 1092.744278 | F90: 14864.53308 | G90: =IF(BASIN_DESIGN!$C$11="SI",F90/10000,F90/43560) -> 0.3412427246
A91: 0.6498279527 | B91: =$B$104+(2*A91*BASIN_DESIGN!$C$26) -> 222.3200306 | C91: =$C$104+(2*A91*BASIN_DESIGN!$C$26) -> 98.11346949 | D91: 21812.58954 | E91: 1087.94032 | F91: 13771.7888 | G91: =IF(BASIN_DESIGN!$C$11="SI",F91/10000,F91/43560) -> 0.3161567678
A92: 0.5998411871 | B92: =$B$104+(2*A92*BASIN_DESIGN!$C$26) -> 222.02011 | C92: =$C$104+(2*A92*BASIN_DESIGN!$C$26) -> 97.81354889 | D92: 21716.57489 | E92: 1083.145354 | F92: 12683.84848 | G92: =IF(BASIN_DESIGN!$C$11="SI",F92/10000,F92/43560) -> 0.2911810947
A93: 0.5498544215 | B93: =$B$104+(2*A93*BASIN_DESIGN!$C$26) -> 221.7201894 | C93: =$C$104+(2*A93*BASIN_DESIGN!$C$26) -> 97.5136283 | D93: 21620.74014 | E93: 1078.359382 | F93: 11600.70313 | G93: =IF(BASIN_DESIGN!$C$11="SI",F93/10000,F93/43560) -> 0.2663154989
A94: 0.4998676559 | B94: =$B$104+(2*A94*BASIN_DESIGN!$C$26) -> 221.4202688 | C94: =$C$104+(2*A94*BASIN_DESIGN!$C$26) -> 97.21370771 | D94: 21525.08529 | E94: 1073.582402 | F94: 10522.34375 | G94: =IF(BASIN_DESIGN!$C$11="SI",F94/10000,F94/43560) -> 0.2415597738
A95: 0.4498808903 | B95: =$B$104+(2*A95*BASIN_DESIGN!$C$26) -> 221.1203482 | C95: =$C$104+(2*A95*BASIN_DESIGN!$C$26) -> 96.91378711 | D95: 21429.61036 | E95: 1068.814415 | F95: 9448.761346 | G95: =IF(BASIN_DESIGN!$C$11="SI",F95/10000,F95/43560) -> 0.2169137132
A96: 0.3998941248 | B96: =$B$104+(2*A96*BASIN_DESIGN!$C$26) -> 220.8204276 | C96: =$C$104+(2*A96*BASIN_DESIGN!$C$26) -> 96.61386652 | D96: 21334.31532 | E96: 1064.055421 | F96: 8379.946931 | G96: =IF(BASIN_DESIGN!$C$11="SI",F96/10000,F96/43560) -> 0.1923771105
A97: 0.3499073592 | B97: =$B$104+(2*A97*BASIN_DESIGN!$C$26) -> 220.5205071 | C97: =$C$104+(2*A97*BASIN_DESIGN!$C$26) -> 96.31394593 | D97: 21239.20019 | E97: 1059.30542 | F97: 7315.891511 | G97: =IF(BASIN_DESIGN!$C$11="SI",F97/10000,F97/43560) -> 0.1679497592
A98: 0.2999205936 | B98: =$B$104+(2*A98*BASIN_DESIGN!$C$26) -> 220.2205865 | C98: =$C$104+(2*A98*BASIN_DESIGN!$C$26) -> 96.01402533 | D98: 21144.26497 | E98: 1054.564411 | F98: 6256.586091 | G98: =IF(BASIN_DESIGN!$C$11="SI",F98/10000,F98/43560) -> 0.143631453
A99: 0.249933828 | B99: =$B$104+(2*A99*BASIN_DESIGN!$C$26) -> 219.9206659 | C99: =$C$104+(2*A99*BASIN_DESIGN!$C$26) -> 95.71410474 | D99: 21049.50965 | E99: 1049.832396 | F99: 5202.02168 | G99: =IF(BASIN_DESIGN!$C$11="SI",F99/10000,F99/43560) -> 0.1194219853
A100: 0.1999470624 | B100: =$B$104+(2*A100*BASIN_DESIGN!$C$26) -> 219.6207453 | C100: =$C$104+(2*A100*BASIN_DESIGN!$C$26) -> 95.41418415 | D100: 20954.93423 | E100: 1045.109373 | F100: 4152.189284 | G100: =IF(BASIN_DESIGN!$C$11="SI",F100/10000,F100/43560) -> 0.09532114977
A101: 0.1499602968 | B101: =$B$104+(2*A101*BASIN_DESIGN!$C$26) -> 219.3208247 | C101: =$C$104+(2*A101*BASIN_DESIGN!$C$26) -> 95.11426355 | D101: 20860.53872 | E101: 1040.395343 | F101: 3107.079911 | G101: =IF(BASIN_DESIGN!$C$11="SI",F101/10000,F101/43560) -> 0.07132873993
A102: 0.09997353119 | B102: =$B$104+(2*A102*BASIN_DESIGN!$C$26) -> 219.0209041 | C102: =$C$104+(2*A102*BASIN_DESIGN!$C$26) -> 94.81434296 | D102: 20766.32312 | E102: 1035.690306 | F102: 2066.684568 | G102: =IF(BASIN_DESIGN!$C$11="SI",F102/10000,F102/43560) -> 0.04744454931
A103: =A102-($A$4/100) -> 0.04998676559 | B103: =$B$104+(2*A103*BASIN_DESIGN!$C$26) -> 218.7209835 | C103: =$C$104+(2*A103*BASIN_DESIGN!$C$26) -> 94.51442236 | D103: 20672.28741 | E103: 1030.994262 | F103: 1030.994262 | G103: =IF(BASIN_DESIGN!$C$11="SI",F103/10000,F103/43560) -> 0.02366837149
A104: =A103-($A$4/100) -> -6.397660179e-15 | B104: =BASIN_DESIGN!C31 -> 218.4210629 | C104: =BASIN_DESIGN!C32 -> 94.21450177 | D104: =B104*C104 -> 20578.43162 | E104: =(1/6)*(A104-A106)*((C104*B104)+(C104+C106)*(B104+B106)+(B106*C106)) -> -4.388460417e-11 | F104: 0 | G104: =IF(BASIN_DESIGN!$C$11="SI",F104/10000,F104/43560) -> 0
E106: 0 | F106: =G4 -> 2.933861096 | G106: 0 | H106: =BASIN_DESIGN!H20 -> 72
C107: Freeboard | E107: =BASIN_DESIGN!H26 -> 4.998676559 | F107: =BASIN_DESIGN!H26 -> 4.998676559 | G107: =BASIN_DESIGN!$H$26 -> 4.998676559 | H107: =BASIN_DESIGN!$H$26 -> 4.998676559
C108: Spillway Crown | E108: =BASIN_DESIGN!C40 -> 2.998676559 | F108: =BASIN_DESIGN!C40 -> 2.998676559 | G108: =BASIN_DESIGN!$C$40 -> 2.998676559 | H108: =BASIN_DESIGN!$C$40 -> 2.998676559
C109: Live Storage | E109: =BASIN_DESIGN!H25 -> 2.25 | F109: =E109 -> 2.25 | G109: =BASIN_DESIGN!$H$25 -> 2.25 | H109: =BASIN_DESIGN!$H$25 -> 2.25
C110: Dead Storage | E110: =BASIN_DESIGN!C27 -> 0.1 | F110: =E110 -> 0.1 | G110: =BASIN_DESIGN!$C$27 -> 0.1 | H110: =BASIN_DESIGN!$C$27 -> 0.1

Sheet DEWATERING
A1: Computation of Dewatering Rate with Selected Surface Skimmer Orifice
A2: Complete Live Storage Dewatering Time: | E2: =I106 -> 72 | F2: hrs
A3: Stage | B3: Skimmer Height | C3: Length | D3: Width | E3: Surface Area | F3: Incremental Volume | G3: Cumulative Volume | H3: Dewatering Rate | I3: Dewatering Time | J3: Cum. Dewatering Time
A4: =IF(BASIN_DESIGN!$C$11="SI", "m","ft") -> ft | B4: =IF(BASIN_DESIGN!$C$11="SI", "m","ft") -> ft | C4: =IF(BASIN_DESIGN!$C$11="SI", "m","ft") -> ft | D4: =IF(BASIN_DESIGN!$C$11="SI", "m","ft") -> ft | E4: =IF(BASIN_DESIGN!$C$11="SI", "m²", "ft²") -> ft² | F4: =IF(BASIN_DESIGN!$C$11="SI", "m³","ft³") -> ft³ | G4: =IF(BASIN_DESIGN!$C$11="SI", "m³","ft³") -> ft³ | H4: =IF(BASIN_DESIGN!$C$11="SI", "m³/hr","ft³/hr") -> ft³/hr | I4: hr | J4: hr
A5: =BASIN_DESIGN!H25 -> 2.25 | B5: =A5-BASIN_DESIGN!$C$27 -> 2.15 | C5: ='STAGE-STORAGE'!$B$104+(2*A5*BASIN_DESIGN!$C$26) -> 231.9210629 | D5: ='STAGE-STORAGE'!$C$104+(2*A5*BASIN_DESIGN!$C$26) -> 107.7145018 | E5: =C5*D5 -> 24981.26174 | F5: =(1/6)*(A5-A6)*((D5*C5)+(D5+D6)*(C5+C6)+(C6*D6)) -> 536.6262571 | G5: =(1/6)*(A5)*(C5*D5+(C5+'STAGE-STORAGE'!$B$104)*(D5+'STAGE-STORAGE'!$C$104)+('STAGE-STORAGE'!$B$104*'STAGE-STORAGE'!$C$104)) -> 51186.31128 | H5: =BASIN_DESIGN!$H$21 -> 682.2094035 | I5: =F5/H5 -> 0.7866004988 | J5: =F5/H5 -> 0.7866004988
A6: =A5-(($A$5-BASIN_DESIGN!$C$27)/100) -> 2.2285 | B6: =A6-BASIN_DESIGN!$C$27 -> 2.1285 | C6: ='STAGE-STORAGE'!$B$104+(2*A6*BASIN_DESIGN!$C$26) -> 231.7920629 | D6: ='STAGE-STORAGE'!$C$104+(2*A6*BASIN_DESIGN!$C$26) -> 107.5855018 | E6: =C6*D6 -> 24937.46539 | F6: =(1/6)*(A6-A7)*((D6*C6)+(D6+D7)*(C6+C7)+(C7*D7)) -> 535.6849934 | G6: =(1/6)*(A6)*(C6*D6+(C6+'STAGE-STORAGE'!$B$104)*(D6+'STAGE-STORAGE'!$C$104)+('STAGE-STORAGE'!$B$104*'STAGE-STORAGE'!$C$104)) -> 50649.68502 | H6: =BASIN_DESIGN!$H$21 -> 682.2094035 | I6: =F6/H6 -> 0.7852207704 | J6: =F6/H6+J5 -> 1.571821269
A7: =A6-(($A$5-BASIN_DESIGN!$C$27)/100) -> 2.207 | B7: =A7-BASIN_DESIGN!$C$27 -> 2.107 | C7: ='STAGE-STORAGE'!$B$104+(2*A7*BASIN_DESIGN!$C$26) -> 231.6630629 | D7: ='STAGE-STORAGE'!$C$104+(2*A7*BASIN_DESIGN!$C$26) -> 107.4565018 | E7: 24893.70233 | F7: 534.7444453 | G7: =(1/6)*(A7)*(C7*D7+(C7+'STAGE-STORAGE'!$B$104)*(D7+'STAGE-STORAGE'!$C$104)+('STAGE-STORAGE'!$B$104*'STAGE-STORAGE'!$C$104)) -> 50114.00003 | H7: =BASIN_DESIGN!$H$21 -> 682.2094035 | I7: =F7/H7 -> 0.783842091 | J7: 2.35566336
A8: =A7-(($A$5-BASIN_DESIGN!$C$27)/100) -> 2.1855 | B8: =A8-BASIN_DESIGN!$C$27 -> 2.0855 | C8: ='STAGE-STORAGE'!$B$104+(2*A8*BASIN_DESIGN!$C$26) -> 231.5340629 | D8: ='STAGE-STORAGE'!$C$104+(2*A8*BASIN_DESIGN!$C$26) -> 107.3275018 | E8: 24849.97255 | F8: 533.8046127 | G8: =(1/6)*(A8)*(C8*D8+(C8+'STAGE-STORAGE'!$B$104)*(D8+'STAGE-STORAGE'!$C$104)+('STAGE-STORAGE'!$B$104*'STAGE-STORAGE'!$C$104)) -> 49579.25558 | H8: =BASIN_DESIGN!$H$21 -> 682.2094035 | I8: 0.7824644604 | J8: 3.138127821
A9: =A8-(($A$5-BASIN_DESIGN!$C$27)/100) -> 2.164 | B9: =A9-BASIN_DESIGN!$C$27 -> 2.064 | C9: ='STAGE-STORAGE'!$B$104+(2*A9*BASIN_DESIGN!$C$26) -> 231.4050629 | D9: ='STAGE-STORAGE'!$C$104+(2*A9*BASIN_DESIGN!$C$26) -> 107.1985018 | E9: 24806.27604 | F9: 532.8654957 | G9: =(1/6)*(A9)*(C9*D9+(C9+'STAGE-STORAGE'!$B$104)*(D9+'STAGE-STORAGE'!$C$104)+('STAGE-STORAGE'!$B$104*'STAGE-STORAGE'!$C$104)) -> 49045.45097 | H9: =BASIN_DESIGN!$H$21 -> 682.2094035 | I9: 0.7810878786 | J9: 3.919215699
A10: =A9-(($A$5-BASIN_DESIGN!$C$27)/100) -> 2.1425 | B10: =A10-BASIN_DESIGN!$C$27 -> 2.0425 | C10: ='STAGE-STORAGE'!$B$104+(2*A10*BASIN_DESIGN!$C$26) -> 231.2760629 | D10: ='STAGE-STORAGE'!$C$104+(2*A10*BASIN_DESIGN!$C$26) -> 107.0695018 | E10: 24762.61283 | F10: 531.9270943 | G10: =(1/6)*(A10)*(C10*D10+(C10+'STAGE-STORAGE'!$B$104)*(D10+'STAGE-STORAGE'!$C$104)+('STAGE-STORAGE'!$B$104*'STAGE-STORAGE'!$C$104)) -> 48512.58547 | H10: =BASIN_DESIGN!$H$21 -> 682.2094035 | I10: 0.7797123458 | J10: 4.698928045
A11: =A10-(($A$5-BASIN_DESIGN!$C$27)/100) -> 2.121 | B11: =A11-BASIN_DESIGN!$C$27 -> 2.021 | C11: ='STAGE-STORAGE'!$B$104+(2*A11*BASIN_DESIGN!$C$26) -> 231.1470629 | D11: ='STAGE-STORAGE'!$C$104+(2*A11*BASIN_DESIGN!$C$26) -> 106.9405018 | E11: 24718.98289 | F11: 530.9894084 | G11: =(1/6)*(A11)*(C11*D11+(C11+'STAGE-STORAGE'!$B$104)*(D11+'STAGE-STORAGE'!$C$104)+('STAGE-STORAGE'!$B$104*'STAGE-STORAGE'!$C$104)) -> 47980.65838 | H11: =BASIN_DESIGN!$H$21 -> 682.2094035 | I11: 0.7783378619 | J11: 5.477265907
A12: =A11-(($A$5-BASIN_DESIGN!$C$27)/100) -> 2.0995 | B12: =A12-BASIN_DESIGN!$C$27 -> 1.9995 | C12: ='STAGE-STORAGE'!$B$104+(2*A12*BASIN_DESIGN!$C$26) -> 231.0180629 | D12: ='STAGE-STORAGE'!$C$104+(2*A12*BASIN_DESIGN!$C$26) -> 106.8115018 | E12: 24675.38623 | F12: 530.0524382 | G12: =(1/6)*(A12)*(C12*D12+(C12+'STAGE-STORAGE'!$B$104)*(D12+'STAGE-STORAGE'!$C$104)+('STAGE-STORAGE'!$B$104*'STAGE-STORAGE'!$C$104)) -> 47449.66897 | H12: =BASIN_DESIGN!$H$21 -> 682.2094035 | I12: 0.7769644269 | J12: 6.254230334
A13: =A12-(($A$5-BASIN_DESIGN!$C$27)/100) -> 2.078 | B13: =A13-BASIN_DESIGN!$C$27 -> 1.978 | C13: ='STAGE-STORAGE'!$B$104+(2*A13*BASIN_DESIGN!$C$26) -> 230.8890629 | D13: ='STAGE-STORAGE'!$C$104+(2*A13*BASIN_DESIGN!$C$26) -> 106.6825018 | E13: 24631.82286 | F13: 529.1161834 | G13: =(1/6)*(A13)*(C13*D13+(C13+'STAGE-STORAGE'!$B$104)*(D13+'STAGE-STORAGE'!$C$104)+('STAGE-STORAGE'!$B$104*'STAGE-STORAGE'!$C$104)) -> 46919.61653 | H13: =BASIN_DESIGN!$H$21 -> 682.2094035 | I13: 0.7755920407 | J13: 7.029822375
A14: =A13-(($A$5-BASIN_DESIGN!$C$27)/100) -> 2.0565 | B14: =A14-BASIN_DESIGN!$C$27 -> 1.9565 | C14: ='STAGE-STORAGE'!$B$104+(2*A14*BASIN_DESIGN!$C$26) -> 230.7600629 | D14: ='STAGE-STORAGE'!$C$104+(2*A14*BASIN_DESIGN!$C$26) -> 106.5535018 | E14: 24588.29277 | F14: 528.1806442 | G14: =(1/6)*(A14)*(C14*D14+(C14+'STAGE-STORAGE'!$B$104)*(D14+'STAGE-STORAGE'!$C$104)+('STAGE-STORAGE'!$B$104*'STAGE-STORAGE'!$C$104)) -> 46390.50035 | H14: =BASIN_DESIGN!$H$21 -> 682.2094035 | I14: 0.7742207035 | J14: 7.804043078
A15: =A14-(($A$5-BASIN_DESIGN!$C$27)/100) -> 2.035 | B15: =A15-BASIN_DESIGN!$C$27 -> 1.935 | C15: ='STAGE-STORAGE'!$B$104+(2*A15*BASIN_DESIGN!$C$26) -> 230.6310629 | D15: ='STAGE-STORAGE'!$C$104+(2*A15*BASIN_DESIGN!$C$26) -> 106.4245018 | E15: 24544.79596 | F15: 527.2458206 | G15: =(1/6)*(A15)*(C15*D15+(C15+'STAGE-STORAGE'!$B$104)*(D15+'STAGE-STORAGE'!$C$104)+('STAGE-STORAGE'!$B$104*'STAGE-STORAGE'!$C$104)) -> 45862.3197 | H15: =BASIN_DESIGN!$H$21 -> 682.2094035 | I15: 0.7728504151 | J15: 8.576893493
A16: =A15-(($A$5-BASIN_DESIGN!$C$27)/100) -> 2.0135 | B16: =A16-BASIN_DESIGN!$C$27 -> 1.9135 | C16: ='STAGE-STORAGE'!$B$104+(2*A16*BASIN_DESIGN!$C$26) -> 230.5020629 | D16: ='STAGE-STORAGE'!$C$104+(2*A16*BASIN_DESIGN!$C$26) -> 106.2955018 | E16: 24501.33244 | F16: 526.3117126 | G16: =(1/6)*(A16)*(C16*D16+(C16+'STAGE-STORAGE'!$B$104)*(D16+'STAGE-STORAGE'!$C$104)+('STAGE-STORAGE'!$B$104*'STAGE-STORAGE'!$C$104)) -> 45335.07388 | H16: =BASIN_DESIGN!$H$21 -> 682.2094035 | I16: 0.7714811756 | J16: 9.348374669
A17: =A16-(($A$5-BASIN_DESIGN!$C$27)/100) -> 1.992 | B17: =A17-BASIN_DESIGN!$C$27 -> 1.892 | C17: ='STAGE-STORAGE'!$B$104+(2*A17*BASIN_DESIGN!$C$26) -> 230.3730629 | D17: ='STAGE-STORAGE'!$C$104+(2*A17*BASIN_DESIGN!$C$26) -> 106.1665018 | E17: 24457.90219 | F17: 525.3783201 | G17: =(1/6)*(A17)*(C17*D17+(C17+'STAGE-STORAGE'!$B$104)*(D17+'STAGE-STORAGE'!$C$104)+('STAGE-STORAGE'!$B$104*'STAGE-STORAGE'!$C$104)) -> 44808.76217 | H17: =BASIN_DESIGN!$H$21 -> 682.2094035 | I17: 0.770112985 | J17: 10.11848765
A18: =A17-(($A$5-BASIN_DESIGN!$C$27)/100) -> 1.9705 | B18: =A18-BASIN_DESIGN!$C$27 -> 1.8705 | C18: ='STAGE-STORAGE'!$B$104+(2*A18*BASIN_DESIGN!$C$26) -> 230.2440629 | D18: ='STAGE-STORAGE'!$C$104+(2*A18*BASIN_DESIGN!$C$26) -> 106.0375018 | E18: 24414.50523 | F18: 524.4456432 | G18: =(1/6)*(A18)*(C18*D18+(C18+'STAGE-STORAGE'!$B$104)*(D18+'STAGE-STORAGE'!$C$104)+('STAGE-STORAGE'!$B$104*'STAGE-STORAGE'!$C$104)) -> 44283.38385 | H18: =BASIN_DESIGN!$H$21 -> 682.2094035 | I18: 0.7687458433 | J18: 10.8872335
A19: =A18-(($A$5-BASIN_DESIGN!$C$27)/100) -> 1.949 | B19: =A19-BASIN_DESIGN!$C$27 -> 1.849 | C19: ='STAGE-STORAGE'!$B$104+(2*A19*BASIN_DESIGN!$C$26) -> 230.1150629 | D19: ='STAGE-STORAGE'!$C$104+(2*A19*BASIN_DESIGN!$C$26) -> 105.9085018 | E19: 24371.14155 | F19: 523.5136818 | G19: =(1/6)*(A19)*(C19*D19+(C19+'STAGE-STORAGE'!$B$104)*(D19+'STAGE-STORAGE'!$C$104)+('STAGE-STORAGE'!$B$104*'STAGE-STORAGE'!$C$104)) -> 43758.93821 | H19: =BASIN_DESIGN!$H$21 -> 682.2094035 | I19: 0.7673797505 | J19: 11.65461325
A20: =A19-(($A$5-BASIN_DESIGN!$C$27)/100) -> 1.9275 | B20: =A20-BASIN_DESIGN!$C$27 -> 1.8275 | C20: ='STAGE-STORAGE'!$B$104+(2*A20*BASIN_DESIGN!$C$26) -> 229.9860629 | D20: ='STAGE-STORAGE'!$C$104+(2*A20*BASIN_DESIGN!$C$26) -> 105.7795018 | E20: 24327.81115 | F20: 522.582436 | G20: =(1/6)*(A20)*(C20*D20+(C20+'STAGE-STORAGE'!$B$104)*(D20+'STAGE-STORAGE'!$C$104)+('STAGE-STORAGE'!$B$104*'STAGE-STORAGE'!$C$104)) -> 43235.42453 | H20: =BASIN_DESIGN!$H$21 -> 682.2094035 | I20: 0.7660147066 | J20: 12.42062795
A21: =A20-(($A$5-BASIN_DESIGN!$C$27)/100) -> 1.906 | B21: =A21-BASIN_DESIGN!$C$27 -> 1.806 | C21: ='STAGE-STORAGE'!$B$104+(2*A21*BASIN_DESIGN!$C$26) -> 229.8570629 | D21: ='STAGE-STORAGE'!$C$104+(2*A21*BASIN_DESIGN!$C$26) -> 105.6505018 | E21: 24284.51403 | F21: 521.6519058 | G21: =(1/6)*(A21)*(C21*D21+(C21+'STAGE-STORAGE'!$B$104)*(D21+'STAGE-STORAGE'!$C$104)+('STAGE-STORAGE'!$B$104*'STAGE-STORAGE'!$C$104)) -> 42712.84209 | H21: =BASIN_DESIGN!$H$21 -> 682.2094035 | I21: 0.7646507116 | J21: 13.18527867
A22: =A21-(($A$5-BASIN_DESIGN!$C$27)/100) -> 1.8845 | B22: =A22-BASIN_DESIGN!$C$27 -> 1.7845 | C22: ='STAGE-STORAGE'!$B$104+(2*A22*BASIN_DESIGN!$C$26) -> 229.7280629 | D22: ='STAGE-STORAGE'!$C$104+(2*A22*BASIN_DESIGN!$C$26) -> 105.5215018 | E22: 24241.2502 | F22: 520.7220911 | G22: =(1/6)*(A22)*(C22*D22+(C22+'STAGE-STORAGE'!$B$104)*(D22+'STAGE-STORAGE'!$C$104)+('STAGE-STORAGE'!$B$104*'STAGE-STORAGE'!$C$104)) -> 42191.19018 | H22: =BASIN_DESIGN!$H$21 -> 682.2094035 | I22: 0.7632877655 | J22: 13.94856643
A23: =A22-(($A$5-BASIN_DESIGN!$C$27)/100) -> 1.863 | B23: =A23-BASIN_DESIGN!$C$27 -> 1.763 | C23: ='STAGE-STORAGE'!$B$104+(2*A23*BASIN_DESIGN!$C$26) -> 229.5990629 | D23: ='STAGE-STORAGE'!$C$104+(2*A23*BASIN_DESIGN!$C$26) -> 105.3925018 | E23: 24198.01964 | F23: 519.792992 | G23: =(1/6)*(A23)*(C23*D23+(C23+'STAGE-STORAGE'!$B$104)*(D23+'STAGE-STORAGE'!$C$104)+('STAGE-STORAGE'!$B$104*'STAGE-STORAGE'!$C$104)) -> 41670.46809 | H23: =BASIN_DESIGN!$H$21 -> 682.2094035 | I23: 0.7619258682 | J23: 14.7104923
A24: =A23-(($A$5-BASIN_DESIGN!$C$27)/100) -> 1.8415 | B24: =A24-BASIN_DESIGN!$C$27 -> 1.7415 | C24: ='STAGE-STORAGE'!$B$104+(2*A24*BASIN_DESIGN!$C$26) -> 229.4700629 | D24: ='STAGE-STORAGE'!$C$104+(2*A24*BASIN_DESIGN!$C$26) -> 105.2635018 | E24: 24154.82237 | F24: 518.8646085 | G24: =(1/6)*(A24)*(C24*D24+(C24+'STAGE-STORAGE'!$B$104)*(D24+'STAGE-STORAGE'!$C$104)+('STAGE-STORAGE'!$B$104*'STAGE-STORAGE'!$C$104)) -> 41150.6751 | H24: =BASIN_DESIGN!$H$21 -> 682.2094035 | I24: 0.7605650199 | J24: 15.47105732
A25: =A24-(($A$5-BASIN_DESIGN!$C$27)/100) -> 1.82 | B25: =A25-BASIN_DESIGN!$C$27 -> 1.72 | C25: ='STAGE-STORAGE'!$B$104+(2*A25*BASIN_DESIGN!$C$26) -> 229.3410629 | D25: ='STAGE-STORAGE'!$C$104+(2*A25*BASIN_DESIGN!$C$26) -> 105.1345018 | E25: 24111.65838 | F25: 517.9369405 | G25: =(1/6)*(A25)*(C25*D25+(C25+'STAGE-STORAGE'!$B$104)*(D25+'STAGE-STORAGE'!$C$104)+('STAGE-STORAGE'!$B$104*'STAGE-STORAGE'!$C$104)) -> 40631.81049 | H25: =BASIN_DESIGN!$H$21 -> 682.2094035 | I25: 0.7592052204 | J25: 16.23026254
A26: =A25-(($A$5-BASIN_DESIGN!$C$27)/100) -> 1.7985 | B26: =A26-BASIN_DESIGN!$C$27 -> 1.6985 | C26: ='STAGE-STORAGE'!$B$104+(2*A26*BASIN_DESIGN!$C$26) -> 229.2120629 | D26: ='STAGE-STORAGE'!$C$104+(2*A26*BASIN_DESIGN!$C$26) -> 105.0055018 | E26: 24068.52768 | F26: 517.0099881 | G26: =(1/6)*(A26)*(C26*D26+(C26+'STAGE-STORAGE'!$B$104)*(D26+'STAGE-STORAGE'!$C$104)+('STAGE-STORAGE'!$B$104*'STAGE-STORAGE'!$C$104)) -> 40113.87355 | H26: =BASIN_DESIGN!$H$21 -> 682.2094035 | I26: 0.7578464698 | J26: 16.98810901
A27: =A26-(($A$5-BASIN_DESIGN!$C$27)/100) -> 1.777 | B27: =A27-BASIN_DESIGN!$C$27 -> 1.677 | C27: ='STAGE-STORAGE'!$B$104+(2*A27*BASIN_DESIGN!$C$26) -> 229.0830629 | D27: ='STAGE-STORAGE'!$C$104+(2*A27*BASIN_DESIGN!$C$26) -> 104.8765018 | E27: 24025.43025 | F27: 516.0837512 | G27: =(1/6)*(A27)*(C27*D27+(C27+'STAGE-STORAGE'!$B$104)*(D27+'STAGE-STORAGE'!$C$104)+('STAGE-STORAGE'!$B$104*'STAGE-STORAGE'!$C$104)) -> 39596.86356 | H27: =BASIN_DESIGN!$H$21 -> 682.2094035 | I27: 0.7564887682 | J27: 17.74459778
A28: =A27-(($A$5-BASIN_DESIGN!$C$27)/100) -> 1.7555 | B28: =A28-BASIN_DESIGN!$C$27 -> 1.6555 | C28: ='STAGE-STORAGE'!$B$104+(2*A28*BASIN_DESIGN!$C$26) -> 228.9540629 | D28: ='STAGE-STORAGE'!$C$104+(2*A28*BASIN_DESIGN!$C$26) -> 104.7475018 | E28: 23982.36611 | F28: 515.15823 | G28: =(1/6)*(A28)*(C28*D28+(C28+'STAGE-STORAGE'!$B$104)*(D28+'STAGE-STORAGE'!$C$104)+('STAGE-STORAGE'!$B$104*'STAGE-STORAGE'!$C$104)) -> 39080.77981 | H28: =BASIN_DESIGN!$H$21 -> 682.2094035 | I28: 0.7551321154 | J28: 18.49972989
A29: =A28-(($A$5-BASIN_DESIGN!$C$27)/100) -> 1.734 | B29: =A29-BASIN_DESIGN!$C$27 -> 1.634 | C29: ='STAGE-STORAGE'!$B$104+(2*A29*BASIN_DESIGN!$C$26) -> 228.8250629 | D29: ='STAGE-STORAGE'!$C$104+(2*A29*BASIN_DESIGN!$C$26) -> 104.6185018 | E29: 23939.33525 | F29: 514.2334242 | G29: =(1/6)*(A29)*(C29*D29+(C29+'STAGE-STORAGE'!$B$104)*(D29+'STAGE-STORAGE'!$C$104)+('STAGE-STORAGE'!$B$104*'STAGE-STORAGE'!$C$104)) -> 38565.62158 | H29: =BASIN_DESIGN!$H$21 -> 682.2094035 | I29: 0.7537765115 | J29: 19.2535064
A30: =A29-(($A$5-BASIN_DESIGN!$C$27)/100) -> 1.7125 | B30: =A30-BASIN_DESIGN!$C$27 -> 1.6125 | C30: ='STAGE-STORAGE'!$B$104+(2*A30*BASIN_DESIGN!$C$26) -> 228.6960629 | D30: ='STAGE-STORAGE'!$C$104+(2*A30*BASIN_DESIGN!$C$26) -> 104.4895018 | E30: 23896.33767 | F30: 513.3093341 | G30: =(1/6)*(A30)*(C30*D30+(C30+'STAGE-STORAGE'!$B$104)*(D30+'STAGE-STORAGE'!$C$104)+('STAGE-STORAGE'!$B$104*'STAGE-STORAGE'!$C$104)) -> 38051.38816 | H30: =BASIN_DESIGN!$H$21 -> 682.2094035 | I30: 0.7524219565 | J30: 20.00592836
A31: =A30-(($A$5-BASIN_DESIGN!$C$27)/100) -> 1.691 | B31: =A31-BASIN_DESIGN!$C$27 -> 1.591 | C31: ='STAGE-STORAGE'!$B$104+(2*A31*BASIN_DESIGN!$C$26) -> 228.5670629 | D31: ='STAGE-STORAGE'!$C$104+(2*A31*BASIN_DESIGN!$C$26) -> 104.3605018 | E31: 23853.37337 | F31: 512.3859595 | G31: =(1/6)*(A31)*(C31*D31+(C31+'STAGE-STORAGE'!$B$104)*(D31+'STAGE-STORAGE'!$C$104)+('STAGE-STORAGE'!$B$104*'STAGE-STORAGE'!$C$104)) -> 37538.07882 | H31: =BASIN_DESIGN!$H$21 -> 682.2094035 | I31: 0.7510684504 | J31: 20.75699681
A32: =A31-(($A$5-BASIN_DESIGN!$C$27)/100) -> 1.6695 | B32: =A32-BASIN_DESIGN!$C$27 -> 1.5695 | C32: ='STAGE-STORAGE'!$B$104+(2*A32*BASIN_DESIGN!$C$26) -> 228.4380629 | D32: ='STAGE-STORAGE'!$C$104+(2*A32*BASIN_DESIGN!$C$26) -> 104.2315018 | E32: 23810.44236 | F32: 511.4633004 | G32: =(1/6)*(A32)*(C32*D32+(C32+'STAGE-STORAGE'!$B$104)*(D32+'STAGE-STORAGE'!$C$104)+('STAGE-STORAGE'!$B$104*'STAGE-STORAGE'!$C$104)) -> 37025.69287 | H32: =BASIN_DESIGN!$H$21 -> 682.2094035 | I32: 0.7497159931 | J32: 21.5067128
A33: =A32-(($A$5-BASIN_DESIGN!$C$27)/100) -> 1.648 | B33: =A33-BASIN_DESIGN!$C$27 -> 1.548 | C33: ='STAGE-STORAGE'!$B$104+(2*A33*BASIN_DESIGN!$C$26) -> 228.3090629 | D33: ='STAGE-STORAGE'!$C$104+(2*A33*BASIN_DESIGN!$C$26) -> 104.1025018 | E33: 23767.54462 | F33: 510.541357 | G33: =(1/6)*(A33)*(C33*D33+(C33+'STAGE-STORAGE'!$B$104)*(D33+'STAGE-STORAGE'!$C$104)+('STAGE-STORAGE'!$B$104*'STAGE-STORAGE'!$C$104)) -> 36514.22956 | H33: =BASIN_DESIGN!$H$21 -> 682.2094035 | I33: 0.7483645848 | J33: 22.25507739
A34: =A33-(($A$5-BASIN_DESIGN!$C$27)/100) -> 1.6265 | B34: =A34-BASIN_DESIGN!$C$27 -> 1.5265 | C34: ='STAGE-STORAGE'!$B$104+(2*A34*BASIN_DESIGN!$C$26) -> 228.1800629 | D34: ='STAGE-STORAGE'!$C$104+(2*A34*BASIN_DESIGN!$C$26) -> 103.9735018 | E34: 23724.68017 | F34: 509.620129 | G34: =(1/6)*(A34)*(C34*D34+(C34+'STAGE-STORAGE'!$B$104)*(D34+'STAGE-STORAGE'!$C$104)+('STAGE-STORAGE'!$B$104*'STAGE-STORAGE'!$C$104)) -> 36003.68821 | H34: =BASIN_DESIGN!$H$21 -> 682.2094035 | I34: 0.7470142253 | J34: 23.00209161
A35: =A34-(($A$5-BASIN_DESIGN!$C$27)/100) -> 1.605 | B35: =A35-BASIN_DESIGN!$C$27 -> 1.505 | C35: ='STAGE-STORAGE'!$B$104+(2*A35*BASIN_DESIGN!$C$26) -> 228.0510629 | D35: ='STAGE-STORAGE'!$C$104+(2*A35*BASIN_DESIGN!$C$26) -> 103.8445018 | E35: 23681.84901 | F35: 508.6996167 | G35: =(1/6)*(A35)*(C35*D35+(C35+'STAGE-STORAGE'!$B$104)*(D35+'STAGE-STORAGE'!$C$104)+('STAGE-STORAGE'!$B$104*'STAGE-STORAGE'!$C$104)) -> 35494.06808 | H35: =BASIN_DESIGN!$H$21 -> 682.2094035 | I35: 0.7456649148 | J35: 23.74775653
A36: =A35-(($A$5-BASIN_DESIGN!$C$27)/100) -> 1.5835 | B36: =A36-BASIN_DESIGN!$C$27 -> 1.4835 | C36: ='STAGE-STORAGE'!$B$104+(2*A36*BASIN_DESIGN!$C$26) -> 227.9220629 | D36: ='STAGE-STORAGE'!$C$104+(2*A36*BASIN_DESIGN!$C$26) -> 103.7155018 | E36: 23639.05112 | F36: 507.7798199 | G36: =(1/6)*(A36)*(C36*D36+(C36+'STAGE-STORAGE'!$B$104)*(D36+'STAGE-STORAGE'!$C$104)+('STAGE-STORAGE'!$B$104*'STAGE-STORAGE'!$C$104)) -> 34985.36846 | H36: =BASIN_DESIGN!$H$21 -> 682.2094035 | I36: 0.7443166531 | J36: 24.49207318
A37: =A36-(($A$5-BASIN_DESIGN!$C$27)/100) -> 1.562 | B37: =A37-BASIN_DESIGN!$C$27 -> 1.462 | C37: ='STAGE-STORAGE'!$B$104+(2*A37*BASIN_DESIGN!$C$26) -> 227.7930629 | D37: ='STAGE-STORAGE'!$C$104+(2*A37*BASIN_DESIGN!$C$26) -> 103.5865018 | E37: 23596.28651 | F37: 506.8607387 | G37: =(1/6)*(A37)*(C37*D37+(C37+'STAGE-STORAGE'!$B$104)*(D37+'STAGE-STORAGE'!$C$104)+('STAGE-STORAGE'!$B$104*'STAGE-STORAGE'!$C$104)) -> 34477.58864 | H37: =BASIN_DESIGN!$H$21 -> 682.2094035 | I37: 0.7429694404 | J37: 25.23504262
A38: =A37-(($A$5-BASIN_DESIGN!$C$27)/100) -> 1.5405 | B38: =A38-BASIN_DESIGN!$C$27 -> 1.4405 | C38: ='STAGE-STORAGE'!$B$104+(2*A38*BASIN_DESIGN!$C$26) -> 227.6640629 | D38: ='STAGE-STORAGE'!$C$104+(2*A38*BASIN_DESIGN!$C$26) -> 103.4575018 | E38: 23553.55519 | F38: 505.942373 | G38: =(1/6)*(A38)*(C38*D38+(C38+'STAGE-STORAGE'!$B$104)*(D38+'STAGE-STORAGE'!$C$104)+('STAGE-STORAGE'!$B$104*'STAGE-STORAGE'!$C$104)) -> 33970.7279 | H38: =BASIN_DESIGN!$H$21 -> 682.2094035 | I38: 0.7416232765 | J38: =F38/H38+J37 -> 25.9766659
A39: =A38-(($A$5-BASIN_DESIGN!$C$27)/100) -> 1.519 | B39: =A39-BASIN_DESIGN!$C$27 -> 1.419 | C39: ='STAGE-STORAGE'!$B$104+(2*A39*BASIN_DESIGN!$C$26) -> 227.5350629 | D39: ='STAGE-STORAGE'!$C$104+(2*A39*BASIN_DESIGN!$C$26) -> 103.3285018 | E39: 23510.85715 | F39: 505.0247229 | G39: =(1/6)*(A39)*(C39*D39+(C39+'STAGE-STORAGE'!$B$104)*(D39+'STAGE-STORAGE'!$C$104)+('STAGE-STORAGE'!$B$104*'STAGE-STORAGE'!$C$104)) -> 33464.78553 | H39: =BASIN_DESIGN!$H$21 -> 682.2094035 | I39: 0.7402781615 | J39: 26.71694406
A40: =A39-(($A$5-BASIN_DESIGN!$C$27)/100) -> 1.4975 | B40: =A40-BASIN_DESIGN!$C$27 -> 1.3975 | C40: ='STAGE-STORAGE'!$B$104+(2*A40*BASIN_DESIGN!$C$26) -> 227.4060629 | D40: ='STAGE-STORAGE'!$C$104+(2*A40*BASIN_DESIGN!$C$26) -> 103.1995018 | E40: 23468.19239 | F40: 504.1077884 | G40: =(1/6)*(A40)*(C40*D40+(C40+'STAGE-STORAGE'!$B$104)*(D40+'STAGE-STORAGE'!$C$104)+('STAGE-STORAGE'!$B$104*'STAGE-STORAGE'!$C$104)) -> 32959.76081 | H40: =BASIN_DESIGN!$H$21 -> 682.2094035 | I40: 0.7389340954 | J40: 27.45587816
A41: =A40-(($A$5-BASIN_DESIGN!$C$27)/100) -> 1.476 | B41: =A41-BASIN_DESIGN!$C$27 -> 1.376 | C41: ='STAGE-STORAGE'!$B$104+(2*A41*BASIN_DESIGN!$C$26) -> 227.2770629 | D41: ='STAGE-STORAGE'!$C$104+(2*A41*BASIN_DESIGN!$C$26) -> 103.0705018 | E41: 23425.56091 | F41: 503.1915694 | G41: =(1/6)*(A41)*(C41*D41+(C41+'STAGE-STORAGE'!$B$104)*(D41+'STAGE-STORAGE'!$C$104)+('STAGE-STORAGE'!$B$104*'STAGE-STORAGE'!$C$104)) -> 32455.65302 | H41: =BASIN_DESIGN!$H$21 -> 682.2094035 | I41: 0.7375910782 | J41: 28.19346923
A42: =A41-(($A$5-BASIN_DESIGN!$C$27)/100) -> 1.4545 | B42: =A42-BASIN_DESIGN!$C$27 -> 1.3545 | C42: ='STAGE-STORAGE'!$B$104+(2*A42*BASIN_DESIGN!$C$26) -> 227.1480629 | D42: ='STAGE-STORAGE'!$C$104+(2*A42*BASIN_DESIGN!$C$26) -> 102.9415018 | E42: 23382.96272 | F42: 502.276066 | G42: =(1/6)*(A42)*(C42*D42+(C42+'STAGE-STORAGE'!$B$104)*(D42+'STAGE-STORAGE'!$C$104)+('STAGE-STORAGE'!$B$104*'STAGE-STORAGE'!$C$104)) -> 31952.46145 | H42: =BASIN_DESIGN!$H$21 -> 682.2094035 | I42: 0.7362491098 | J42: 28.92971834
A43: =A42-(($A$5-BASIN_DESIGN!$C$27)/100) -> 1.433 | B43: =A43-BASIN_DESIGN!$C$27 -> 1.333 | C43: ='STAGE-STORAGE'!$B$104+(2*A43*BASIN_DESIGN!$C$26) -> 227.0190629 | D43: ='STAGE-STORAGE'!$C$104+(2*A43*BASIN_DESIGN!$C$26) -> 102.8125018 | E43: 23340.39781 | F43: 501.3612782 | G43: =(1/6)*(A43)*(C43*D43+(C43+'STAGE-STORAGE'!$B$104)*(D43+'STAGE-STORAGE'!$C$104)+('STAGE-STORAGE'!$B$104*'STAGE-STORAGE'!$C$104)) -> 31450.18538 | H43: =BASIN_DESIGN!$H$21 -> 682.2094035 | I43: 0.7349081904 | J43: 29.66462653
A44: =A43-(($A$5-BASIN_DESIGN!$C$27)/100) -> 1.4115 | B44: =A44-BASIN_DESIGN!$C$27 -> 1.3115 | C44: ='STAGE-STORAGE'!$B$104+(2*A44*BASIN_DESIGN!$C$26) -> 226.8900629 | D44: ='STAGE-STORAGE'!$C$104+(2*A44*BASIN_DESIGN!$C$26) -> 102.6835018 | E44: 23297.86618 | F44: 500.4472059 | G44: =(1/6)*(A44)*(C44*D44+(C44+'STAGE-STORAGE'!$B$104)*(D44+'STAGE-STORAGE'!$C$104)+('STAGE-STORAGE'!$B$104*'STAGE-STORAGE'!$C$104)) -> 30948.82411 | H44: =BASIN_DESIGN!$H$21 -> 682.2094035 | I44: 0.7335683199 | J44: 30.39819485
A45: =A44-(($A$5-BASIN_DESIGN!$C$27)/100) -> 1.39 | B45: =A45-BASIN_DESIGN!$C$27 -> 1.29 | C45: ='STAGE-STORAGE'!$B$104+(2*A45*BASIN_DESIGN!$C$26) -> 226.7610629 | D45: ='STAGE-STORAGE'!$C$104+(2*A45*BASIN_DESIGN!$C$26) -> 102.5545018 | E45: 23255.36783 | F45: 499.5338492 | G45: =(1/6)*(A45)*(C45*D45+(C45+'STAGE-STORAGE'!$B$104)*(D45+'STAGE-STORAGE'!$C$104)+('STAGE-STORAGE'!$B$104*'STAGE-STORAGE'!$C$104)) -> 30448.3769 | H45: =BASIN_DESIGN!$H$21 -> 682.2094035 | I45: 0.7322294982 | J45: 31.13042435
A46: =A45-(($A$5-BASIN_DESIGN!$C$27)/100) -> 1.3685 | B46: =A46-BASIN_DESIGN!$C$27 -> 1.2685 | C46: ='STAGE-STORAGE'!$B$104+(2*A46*BASIN_DESIGN!$C$26) -> 226.6320629 | D46: ='STAGE-STORAGE'!$C$104+(2*A46*BASIN_DESIGN!$C$26) -> 102.4255018 | E46: 23212.90276 | F46: 498.621208 | G46: =(1/6)*(A46)*(C46*D46+(C46+'STAGE-STORAGE'!$B$104)*(D46+'STAGE-STORAGE'!$C$104)+('STAGE-STORAGE'!$B$104*'STAGE-STORAGE'!$C$104)) -> 29948.84305 | H46: =BASIN_DESIGN!$H$21 -> 682.2094035 | I46: 0.7308917255 | J46: 31.86131608
A47: =A46-(($A$5-BASIN_DESIGN!$C$27)/100) -> 1.347 | B47: =A47-BASIN_DESIGN!$C$27 -> 1.247 | C47: ='STAGE-STORAGE'!$B$104+(2*A47*BASIN_DESIGN!$C$26) -> 226.5030629 | D47: ='STAGE-STORAGE'!$C$104+(2*A47*BASIN_DESIGN!$C$26) -> 102.2965018 | E47: 23170.47097 | F47: 497.7092824 | G47: =(1/6)*(A47)*(C47*D47+(C47+'STAGE-STORAGE'!$B$104)*(D47+'STAGE-STORAGE'!$C$104)+('STAGE-STORAGE'!$B$104*'STAGE-STORAGE'!$C$104)) -> 29450.22184 | H47: =BASIN_DESIGN!$H$21 -> 682.2094035 | I47: 0.7295550016 | J47: 32.59087108
A48: =A47-(($A$5-BASIN_DESIGN!$C$27)/100) -> 1.3255 | B48: =A48-BASIN_DESIGN!$C$27 -> 1.2255 | C48: ='STAGE-STORAGE'!$B$104+(2*A48*BASIN_DESIGN!$C$26) -> 226.3740629 | D48: ='STAGE-STORAGE'!$C$104+(2*A48*BASIN_DESIGN!$C$26) -> 102.1675018 | E48: 23128.07247 | F48: 496.7980724 | G48: =(1/6)*(A48)*(C48*D48+(C48+'STAGE-STORAGE'!$B$104)*(D48+'STAGE-STORAGE'!$C$104)+('STAGE-STORAGE'!$B$104*'STAGE-STORAGE'!$C$104)) -> 28952.51256 | H48: =BASIN_DESIGN!$H$21 -> 682.2094035 | I48: 0.7282193266 | J48: 33.31909041
A49: =A48-(($A$5-BASIN_DESIGN!$C$27)/100) -> 1.304 | B49: =A49-BASIN_DESIGN!$C$27 -> 1.204 | C49: ='STAGE-STORAGE'!$B$104+(2*A49*BASIN_DESIGN!$C$26) -> 226.2450629 | D49: ='STAGE-STORAGE'!$C$104+(2*A49*BASIN_DESIGN!$C$26) -> 102.0385018 | E49: 23085.70725 | F49: 495.8875779 | G49: =(1/6)*(A49)*(C49*D49+(C49+'STAGE-STORAGE'!$B$104)*(D49+'STAGE-STORAGE'!$C$104)+('STAGE-STORAGE'!$B$104*'STAGE-STORAGE'!$C$104)) -> 28455.71449 | H49: =BASIN_DESIGN!$H$21 -> 682.2094035 | I49: 0.7268847005 | J49: 34.04597511
A50: =A49-(($A$5-BASIN_DESIGN!$C$27)/100) -> 1.2825 | B50: =A50-BASIN_DESIGN!$C$27 -> 1.1825 | C50: ='STAGE-STORAGE'!$B$104+(2*A50*BASIN_DESIGN!$C$26) -> 226.1160629 | D50: ='STAGE-STORAGE'!$C$104+(2*A50*BASIN_DESIGN!$C$26) -> 101.9095018 | E50: 23043.37531 | F50: 494.977799 | G50: =(1/6)*(A50)*(C50*D50+(C50+'STAGE-STORAGE'!$B$104)*(D50+'STAGE-STORAGE'!$C$104)+('STAGE-STORAGE'!$B$104*'STAGE-STORAGE'!$C$104)) -> 27959.82691 | H50: =BASIN_DESIGN!$H$21 -> 682.2094035 | I50: 0.7255511233 | J50: 34.77152623
A51: =A50-(($A$5-BASIN_DESIGN!$C$27)/100) -> 1.261 | B51: =A51-BASIN_DESIGN!$C$27 -> 1.161 | C51: ='STAGE-STORAGE'!$B$104+(2*A51*BASIN_DESIGN!$C$26) -> 225.9870629 | D51: ='STAGE-STORAGE'!$C$104+(2*A51*BASIN_DESIGN!$C$26) -> 101.7805018 | E51: 23001.07666 | F51: 494.0687357 | G51: =(1/6)*(A51)*(C51*D51+(C51+'STAGE-STORAGE'!$B$104)*(D51+'STAGE-STORAGE'!$C$104)+('STAGE-STORAGE'!$B$104*'STAGE-STORAGE'!$C$104)) -> 27464.84911 | H51: =BASIN_DESIGN!$H$21 -> 682.2094035 | I51: 0.724218595 | J51: 35.49574483
A52: =A51-(($A$5-BASIN_DESIGN!$C$27)/100) -> 1.2395 | B52: =A52-BASIN_DESIGN!$C$27 -> 1.1395 | C52: ='STAGE-STORAGE'!$B$104+(2*A52*BASIN_DESIGN!$C$26) -> 225.8580629 | D52: ='STAGE-STORAGE'!$C$104+(2*A52*BASIN_DESIGN!$C$26) -> 101.6515018 | E52: 22958.81128 | F52: 493.1603879 | G52: =(1/6)*(A52)*(C52*D52+(C52+'STAGE-STORAGE'!$B$104)*(D52+'STAGE-STORAGE'!$C$104)+('STAGE-STORAGE'!$B$104*'STAGE-STORAGE'!$C$104)) -> 26970.78037 | H52: =BASIN_DESIGN!$H$21 -> 682.2094035 | I52: 0.7228871156 | J52: 36.21863194
A53: =A52-(($A$5-BASIN_DESIGN!$C$27)/100) -> 1.218 | B53: =A53-BASIN_DESIGN!$C$27 -> 1.118 | C53: ='STAGE-STORAGE'!$B$104+(2*A53*BASIN_DESIGN!$C$26) -> 225.7290629 | D53: ='STAGE-STORAGE'!$C$104+(2*A53*BASIN_DESIGN!$C$26) -> 101.5225018 | E53: 22916.57919 | F53: 492.2527557 | G53: =(1/6)*(A53)*(C53*D53+(C53+'STAGE-STORAGE'!$B$104)*(D53+'STAGE-STORAGE'!$C$104)+('STAGE-STORAGE'!$B$104*'STAGE-STORAGE'!$C$104)) -> 26477.61999 | H53: =BASIN_DESIGN!$H$21 -> 682.2094035 | I53: 0.7215566851 | J53: 36.94018863
A54: =A53-(($A$5-BASIN_DESIGN!$C$27)/100) -> 1.1965 | B54: =A54-BASIN_DESIGN!$C$27 -> 1.0965 | C54: ='STAGE-STORAGE'!$B$104+(2*A54*BASIN_DESIGN!$C$26) -> 225.6000629 | D54: ='STAGE-STORAGE'!$C$104+(2*A54*BASIN_DESIGN!$C$26) -> 101.3935018 | E54: 22874.38038 | F54: 491.345839 | G54: =(1/6)*(A54)*(C54*D54+(C54+'STAGE-STORAGE'!$B$104)*(D54+'STAGE-STORAGE'!$C$104)+('STAGE-STORAGE'!$B$104*'STAGE-STORAGE'!$C$104)) -> 25985.36723 | H54: =BASIN_DESIGN!$H$21 -> 682.2094035 | I54: 0.7202273035 | J54: 37.66041593
A55: =A54-(($A$5-BASIN_DESIGN!$C$27)/100) -> 1.175 | B55: =A55-BASIN_DESIGN!$C$27 -> 1.075 | C55: ='STAGE-STORAGE'!$B$104+(2*A55*BASIN_DESIGN!$C$26) -> 225.4710629 | D55: ='STAGE-STORAGE'!$C$104+(2*A55*BASIN_DESIGN!$C$26) -> 101.2645018 | E55: 22832.21485 | F55: 490.439638 | G55: =(1/6)*(A55)*(C55*D55+(C55+'STAGE-STORAGE'!$B$104)*(D55+'STAGE-STORAGE'!$C$104)+('STAGE-STORAGE'!$B$104*'STAGE-STORAGE'!$C$104)) -> 25494.02139 | H55: =BASIN_DESIGN!$H$21 -> 682.2094035 | I55: 0.7188989707 | J55: 38.3793149
A56: =A55-(($A$5-BASIN_DESIGN!$C$27)/100) -> 1.1535 | B56: =A56-BASIN_DESIGN!$C$27 -> 1.0535 | C56: ='STAGE-STORAGE'!$B$104+(2*A56*BASIN_DESIGN!$C$26) -> 225.3420629 | D56: ='STAGE-STORAGE'!$C$104+(2*A56*BASIN_DESIGN!$C$26) -> 101.1355018 | E56: 22790.0826 | F56: 489.5341524 | G56: =(1/6)*(A56)*(C56*D56+(C56+'STAGE-STORAGE'!$B$104)*(D56+'STAGE-STORAGE'!$C$104)+('STAGE-STORAGE'!$B$104*'STAGE-STORAGE'!$C$104)) -> 25003.58175 | H56: =BASIN_DESIGN!$H$21 -> 682.2094035 | I56: 0.7175716869 | J56: 39.09688659
A57: =A56-(($A$5-BASIN_DESIGN!$C$27)/100) -> 1.132 | B57: =A57-BASIN_DESIGN!$C$27 -> 1.032 | C57: ='STAGE-STORAGE'!$B$104+(2*A57*BASIN_DESIGN!$C$26) -> 225.2130629 | D57: ='STAGE-STORAGE'!$C$104+(2*A57*BASIN_DESIGN!$C$26) -> 101.0065018 | E57: 22747.98364 | F57: 488.6293825 | G57: =(1/6)*(A57)*(C57*D57+(C57+'STAGE-STORAGE'!$B$104)*(D57+'STAGE-STORAGE'!$C$104)+('STAGE-STORAGE'!$B$104*'STAGE-STORAGE'!$C$104)) -> 24514.0476 | H57: =BASIN_DESIGN!$H$21 -> 682.2094035 | I57: 0.7162454519 | J57: 39.81313204
A58: =A57-(($A$5-BASIN_DESIGN!$C$27)/100) -> 1.1105 | B58: =A58-BASIN_DESIGN!$C$27 -> 1.0105 | C58: ='STAGE-STORAGE'!$B$104+(2*A58*BASIN_DESIGN!$C$26) -> 225.0840629 | D58: ='STAGE-STORAGE'!$C$104+(2*A58*BASIN_DESIGN!$C$26) -> 100.8775018 | E58: 22705.91795 | F58: 487.7253281 | G58: =(1/6)*(A58)*(C58*D58+(C58+'STAGE-STORAGE'!$B$104)*(D58+'STAGE-STORAGE'!$C$104)+('STAGE-STORAGE'!$B$104*'STAGE-STORAGE'!$C$104)) -> 24025.41822 | H58: =BASIN_DESIGN!$H$21 -> 682.2094035 | I58: 0.7149202658 | J58: 40.5280523
A59: =A58-(($A$5-BASIN_DESIGN!$C$27)/100) -> 1.089 | B59: =A59-BASIN_DESIGN!$C$27 -> 0.989 | C59: ='STAGE-STORAGE'!$B$104+(2*A59*BASIN_DESIGN!$C$26) -> 224.9550629 | D59: ='STAGE-STORAGE'!$C$104+(2*A59*BASIN_DESIGN!$C$26) -> 100.7485018 | E59: 22663.88555 | F59: 486.8219892 | G59: =(1/6)*(A59)*(C59*D59+(C59+'STAGE-STORAGE'!$B$104)*(D59+'STAGE-STORAGE'!$C$104)+('STAGE-STORAGE'!$B$104*'STAGE-STORAGE'!$C$104)) -> 23537.69289 | H59: =BASIN_DESIGN!$H$21 -> 682.2094035 | I59: 0.7135961286 | J59: 41.24164843
A60: =A59-(($A$5-BASIN_DESIGN!$C$27)/100) -> 1.0675 | B60: =A60-BASIN_DESIGN!$C$27 -> 0.9675 | C60: ='STAGE-STORAGE'!$B$104+(2*A60*BASIN_DESIGN!$C$26) -> 224.8260629 | D60: ='STAGE-STORAGE'!$C$104+(2*A60*BASIN_DESIGN!$C$26) -> 100.6195018 | E60: 22621.88643 | F60: 485.919366 | G60: =(1/6)*(A60)*(C60*D60+(C60+'STAGE-STORAGE'!$B$104)*(D60+'STAGE-STORAGE'!$C$104)+('STAGE-STORAGE'!$B$104*'STAGE-STORAGE'!$C$104)) -> 23050.8709 | H60: =BASIN_DESIGN!$H$21 -> 682.2094035 | I60: 0.7122730404 | J60: 41.95392147
A61: =A60-(($A$5-BASIN_DESIGN!$C$27)/100) -> 1.046 | B61: =A61-BASIN_DESIGN!$C$27 -> 0.946 | C61: ='STAGE-STORAGE'!$B$104+(2*A61*BASIN_DESIGN!$C$26) -> 224.6970629 | D61: ='STAGE-STORAGE'!$C$104+(2*A61*BASIN_DESIGN!$C$26) -> 100.4905018 | E61: 22579.9206 | F61: 485.0174582 | G61: =(1/6)*(A61)*(C61*D61+(C61+'STAGE-STORAGE'!$B$104)*(D61+'STAGE-STORAGE'!$C$104)+('STAGE-STORAGE'!$B$104*'STAGE-STORAGE'!$C$104)) -> 22564.95154 | H61: =BASIN_DESIGN!$H$21 -> 682.2094035 | I61: 0.710951001 | J61: 42.66487247
A62: =A61-(($A$5-BASIN_DESIGN!$C$27)/100) -> 1.0245 | B62: =A62-BASIN_DESIGN!$C$27 -> 0.9245 | C62: ='STAGE-STORAGE'!$B$104+(2*A62*BASIN_DESIGN!$C$26) -> 224.5680629 | D62: ='STAGE-STORAGE'!$C$104+(2*A62*BASIN_DESIGN!$C$26) -> 100.3615018 | E62: 22537.98804 | F62: 484.1162661 | G62: =(1/6)*(A62)*(C62*D62+(C62+'STAGE-STORAGE'!$B$104)*(D62+'STAGE-STORAGE'!$C$104)+('STAGE-STORAGE'!$B$104*'STAGE-STORAGE'!$C$104)) -> 22079.93408 | H62: =BASIN_DESIGN!$H$21 -> 682.2094035 | I62: 0.7096300104 | J62: 43.37450249
A63: =A62-(($A$5-BASIN_DESIGN!$C$27)/100) -> 1.003 | B63: =A63-BASIN_DESIGN!$C$27 -> 0.903 | C63: ='STAGE-STORAGE'!$B$104+(2*A63*BASIN_DESIGN!$C$26) -> 224.4390629 | D63: ='STAGE-STORAGE'!$C$104+(2*A63*BASIN_DESIGN!$C$26) -> 100.2325018 | E63: 22496.08877 | F63: 483.2157895 | G63: =(1/6)*(A63)*(C63*D63+(C63+'STAGE-STORAGE'!$B$104)*(D63+'STAGE-STORAGE'!$C$104)+('STAGE-STORAGE'!$B$104*'STAGE-STORAGE'!$C$104)) -> 21595.81781 | H63: =BASIN_DESIGN!$H$21 -> 682.2094035 | I63: 0.7083100688 | J63: 44.08281255
A64: =A63-(($A$5-BASIN_DESIGN!$C$27)/100) -> 0.9815 | B64: =A64-BASIN_DESIGN!$C$27 -> 0.8815 | C64: ='STAGE-STORAGE'!$B$104+(2*A64*BASIN_DESIGN!$C$26) -> 224.3100629 | D64: ='STAGE-STORAGE'!$C$104+(2*A64*BASIN_DESIGN!$C$26) -> 100.1035018 | E64: 22454.22278 | F64: 482.3160285 | G64: =(1/6)*(A64)*(C64*D64+(C64+'STAGE-STORAGE'!$B$104)*(D64+'STAGE-STORAGE'!$C$104)+('STAGE-STORAGE'!$B$104*'STAGE-STORAGE'!$C$104)) -> 21112.60202 | H64: =BASIN_DESIGN!$H$21 -> 682.2094035 | I64: 0.7069911761 | J64: 44.78980373
A65: =A64-(($A$5-BASIN_DESIGN!$C$27)/100) -> 0.96 | B65: =A65-BASIN_DESIGN!$C$27 -> 0.86 | C65: ='STAGE-STORAGE'!$B$104+(2*A65*BASIN_DESIGN!$C$26) -> 224.1810629 | D65: ='STAGE-STORAGE'!$C$104+(2*A65*BASIN_DESIGN!$C$26) -> 99.97450177 | E65: 22412.39007 | F65: 481.416983 | G65: =(1/6)*(A65)*(C65*D65+(C65+'STAGE-STORAGE'!$B$104)*(D65+'STAGE-STORAGE'!$C$104)+('STAGE-STORAGE'!$B$104*'STAGE-STORAGE'!$C$104)) -> 20630.28599 | H65: =BASIN_DESIGN!$H$21 -> 682.2094035 | I65: 0.7056733323 | J65: 45.49547706
A66: =A65-(($A$5-BASIN_DESIGN!$C$27)/100) -> 0.9385 | B66: =A66-BASIN_DESIGN!$C$27 -> 0.8385 | C66: ='STAGE-STORAGE'!$B$104+(2*A66*BASIN_DESIGN!$C$26) -> 224.0520629 | D66: ='STAGE-STORAGE'!$C$104+(2*A66*BASIN_DESIGN!$C$26) -> 99.84550177 | E66: 22370.59064 | F66: 480.5186531 | G66: =(1/6)*(A66)*(C66*D66+(C66+'STAGE-STORAGE'!$B$104)*(D66+'STAGE-STORAGE'!$C$104)+('STAGE-STORAGE'!$B$104*'STAGE-STORAGE'!$C$104)) -> 20148.86901 | H66: =BASIN_DESIGN!$H$21 -> 682.2094035 | I66: 0.7043565373 | J66: 46.1998336
A67: =A66-(($A$5-BASIN_DESIGN!$C$27)/100) -> 0.917 | B67: =A67-BASIN_DESIGN!$C$27 -> 0.817 | C67: ='STAGE-STORAGE'!$B$104+(2*A67*BASIN_DESIGN!$C$26) -> 223.9230629 | D67: ='STAGE-STORAGE'!$C$104+(2*A67*BASIN_DESIGN!$C$26) -> 99.71650177 | E67: 22328.8245 | F67: 479.6210388 | G67: =(1/6)*(A67)*(C67*D67+(C67+'STAGE-STORAGE'!$B$104)*(D67+'STAGE-STORAGE'!$C$104)+('STAGE-STORAGE'!$B$104*'STAGE-STORAGE'!$C$104)) -> 19668.35036 | H67: =BASIN_DESIGN!$H$21 -> 682.2094035 | I67: 0.7030407913 | J67: 46.90287439
A68: =A67-(($A$5-BASIN_DESIGN!$C$27)/100) -> 0.8955 | B68: =A68-BASIN_DESIGN!$C$27 -> 0.7955 | C68: ='STAGE-STORAGE'!$B$104+(2*A68*BASIN_DESIGN!$C$26) -> 223.7940629 | D68: ='STAGE-STORAGE'!$C$104+(2*A68*BASIN_DESIGN!$C$26) -> 99.58750177 | E68: 22287.09164 | F68: 478.72414 | G68: =(1/6)*(A68)*(C68*D68+(C68+'STAGE-STORAGE'!$B$104)*(D68+'STAGE-STORAGE'!$C$104)+('STAGE-STORAGE'!$B$104*'STAGE-STORAGE'!$C$104)) -> 19188.72932 | H68: =BASIN_DESIGN!$H$21 -> 682.2094035 | I68: 0.7017260941 | J68: 47.60460049
A69: =A68-(($A$5-BASIN_DESIGN!$C$27)/100) -> 0.874 | B69: =A69-BASIN_DESIGN!$C$27 -> 0.774 | C69: ='STAGE-STORAGE'!$B$104+(2*A69*BASIN_DESIGN!$C$26) -> 223.6650629 | D69: ='STAGE-STORAGE'!$C$104+(2*A69*BASIN_DESIGN!$C$26) -> 99.45850177 | E69: 22245.39205 | F69: 477.8279568 | G69: =(1/6)*(A69)*(C69*D69+(C69+'STAGE-STORAGE'!$B$104)*(D69+'STAGE-STORAGE'!$C$104)+('STAGE-STORAGE'!$B$104*'STAGE-STORAGE'!$C$104)) -> 18710.00518 | H69: =BASIN_DESIGN!$H$21 -> 682.2094035 | I69: 0.7004124458 | J69: 48.30501293
A70: =A69-(($A$5-BASIN_DESIGN!$C$27)/100) -> 0.8525 | B70: =A70-BASIN_DESIGN!$C$27 -> 0.7525 | C70: ='STAGE-STORAGE'!$B$104+(2*A70*BASIN_DESIGN!$C$26) -> 223.5360629 | D70: ='STAGE-STORAGE'!$C$104+(2*A70*BASIN_DESIGN!$C$26) -> 99.32950177 | E70: =C70*D70 -> 22203.72576 | F70: =(1/6)*(A70-A71)*((D70*C70)+(D70+D71)*(C70+C71)+(C71*D71)) -> 476.9324892 | G70: =(1/6)*(A70)*(C70*D70+(C70+'STAGE-STORAGE'!$B$104)*(D70+'STAGE-STORAGE'!$C$104)+('STAGE-STORAGE'!$B$104*'STAGE-STORAGE'!$C$104)) -> 18232.17722 | H70: =BASIN_DESIGN!$H$21 -> 682.2094035 | I70: =F70/H70 -> 0.6990998464 | J70: =F70/H70+J69 -> 49.00411278
A71: =A70-(($A$5-BASIN_DESIGN!$C$27)/100) -> 0.831 | B71: =A71-BASIN_DESIGN!$C$27 -> 0.731 | C71: ='STAGE-STORAGE'!$B$104+(2*A71*BASIN_DESIGN!$C$26) -> 223.4070629 | D71: ='STAGE-STORAGE'!$C$104+(2*A71*BASIN_DESIGN!$C$26) -> 99.20050177 | E71: 22162.09274 | F71: 476.0377371 | G71: =(1/6)*(A71)*(C71*D71+(C71+'STAGE-STORAGE'!$B$104)*(D71+'STAGE-STORAGE'!$C$104)+('STAGE-STORAGE'!$B$104*'STAGE-STORAGE'!$C$104)) -> 17755.24473 | H71: =BASIN_DESIGN!$H$21 -> 682.2094035 | I71: 0.6977882959 | J71: 49.70190107
A72: =A71-(($A$5-BASIN_DESIGN!$C$27)/100) -> 0.8095 | B72: =A72-BASIN_DESIGN!$C$27 -> 0.7095 | C72: ='STAGE-STORAGE'!$B$104+(2*A72*BASIN_DESIGN!$C$26) -> 223.2780629 | D72: ='STAGE-STORAGE'!$C$104+(2*A72*BASIN_DESIGN!$C$26) -> 99.07150177 | E72: 22120.493 | F72: 475.1437006 | G72: =(1/6)*(A72)*(C72*D72+(C72+'STAGE-STORAGE'!$B$104)*(D72+'STAGE-STORAGE'!$C$104)+('STAGE-STORAGE'!$B$104*'STAGE-STORAGE'!$C$104)) -> 17279.207 | H72: =BASIN_DESIGN!$H$21 -> 682.2094035 | I72: 0.6964777943 | J72: 50.39837887
A73: =A72-(($A$5-BASIN_DESIGN!$C$27)/100) -> 0.788 | B73: =A73-BASIN_DESIGN!$C$27 -> 0.688 | C73: ='STAGE-STORAGE'!$B$104+(2*A73*BASIN_DESIGN!$C$26) -> 223.1490629 | D73: ='STAGE-STORAGE'!$C$104+(2*A73*BASIN_DESIGN!$C$26) -> 98.94250177 | E73: 22078.92655 | F73: 474.2503796 | G73: =(1/6)*(A73)*(C73*D73+(C73+'STAGE-STORAGE'!$B$104)*(D73+'STAGE-STORAGE'!$C$104)+('STAGE-STORAGE'!$B$104*'STAGE-STORAGE'!$C$104)) -> 16804.0633 | H73: =BASIN_DESIGN!$H$21 -> 682.2094035 | I73: 0.6951683416 | J73: 51.09354721
A74: =A73-(($A$5-BASIN_DESIGN!$C$27)/100) -> 0.7665 | B74: =A74-BASIN_DESIGN!$C$27 -> 0.6665 | C74: ='STAGE-STORAGE'!$B$104+(2*A74*BASIN_DESIGN!$C$26) -> 223.0200629 | D74: ='STAGE-STORAGE'!$C$104+(2*A74*BASIN_DESIGN!$C$26) -> 98.81350177 | E74: 22037.39338 | F74: 473.3577742 | G74: =(1/6)*(A74)*(C74*D74+(C74+'STAGE-STORAGE'!$B$104)*(D74+'STAGE-STORAGE'!$C$104)+('STAGE-STORAGE'!$B$104*'STAGE-STORAGE'!$C$104)) -> 16329.81292 | H74: =BASIN_DESIGN!$H$21 -> 682.2094035 | I74: 0.6938599378 | J74: 51.78740715
A75: =A74-(($A$5-BASIN_DESIGN!$C$27)/100) -> 0.745 | B75: =A75-BASIN_DESIGN!$C$27 -> 0.645 | C75: ='STAGE-STORAGE'!$B$104+(2*A75*BASIN_DESIGN!$C$26) -> 222.8910629 | D75: ='STAGE-STORAGE'!$C$104+(2*A75*BASIN_DESIGN!$C$26) -> 98.68450177 | E75: 21995.89349 | F75: 472.4658844 | G75: =(1/6)*(A75)*(C75*D75+(C75+'STAGE-STORAGE'!$B$104)*(D75+'STAGE-STORAGE'!$C$104)+('STAGE-STORAGE'!$B$104*'STAGE-STORAGE'!$C$104)) -> 15856.45514 | H75: =BASIN_DESIGN!$H$21 -> 682.2094035 | I75: 0.6925525829 | J75: 52.47995973
A76: =A75-(($A$5-BASIN_DESIGN!$C$27)/100) -> 0.7235 | B76: =A76-BASIN_DESIGN!$C$27 -> 0.6235 | C76: ='STAGE-STORAGE'!$B$104+(2*A76*BASIN_DESIGN!$C$26) -> 222.7620629 | D76: ='STAGE-STORAGE'!$C$104+(2*A76*BASIN_DESIGN!$C$26) -> 98.55550177 | E76: 21954.42688 | F76: 471.5747101 | G76: =(1/6)*(A76)*(C76*D76+(C76+'STAGE-STORAGE'!$B$104)*(D76+'STAGE-STORAGE'!$C$104)+('STAGE-STORAGE'!$B$104*'STAGE-STORAGE'!$C$104)) -> 15383.98926 | H76: =BASIN_DESIGN!$H$21 -> 682.2094035 | I76: 0.6912462768 | J76: 53.17120601
A77: =A76-(($A$5-BASIN_DESIGN!$C$27)/100) -> 0.702 | B77: =A77-BASIN_DESIGN!$C$27 -> 0.602 | C77: ='STAGE-STORAGE'!$B$104+(2*A77*BASIN_DESIGN!$C$26) -> 222.6330629 | D77: ='STAGE-STORAGE'!$C$104+(2*A77*BASIN_DESIGN!$C$26) -> 98.42650177 | E77: 21912.99356 | F77: 470.6842514 | G77: =(1/6)*(A77)*(C77*D77+(C77+'STAGE-STORAGE'!$B$104)*(D77+'STAGE-STORAGE'!$C$104)+('STAGE-STORAGE'!$B$104*'STAGE-STORAGE'!$C$104)) -> 14912.41455 | H77: =BASIN_DESIGN!$H$21 -> 682.2094035 | I77: 0.6899410197 | J77: 53.86114703
A78: =A77-(($A$5-BASIN_DESIGN!$C$27)/100) -> 0.6805 | B78: =A78-BASIN_DESIGN!$C$27 -> 0.5805 | C78: ='STAGE-STORAGE'!$B$104+(2*A78*BASIN_DESIGN!$C$26) -> 222.5040629 | D78: ='STAGE-STORAGE'!$C$104+(2*A78*BASIN_DESIGN!$C$26) -> 98.29750177 | E78: 21871.59352 | F78: 469.7945083 | G78: =(1/6)*(A78)*(C78*D78+(C78+'STAGE-STORAGE'!$B$104)*(D78+'STAGE-STORAGE'!$C$104)+('STAGE-STORAGE'!$B$104*'STAGE-STORAGE'!$C$104)) -> 14441.7303 | H78: =BASIN_DESIGN!$H$21 -> 682.2094035 | I78: 0.6886368114 | J78: 54.54978384
A79: =A78-(($A$5-BASIN_DESIGN!$C$27)/100) -> 0.659 | B79: =A79-BASIN_DESIGN!$C$27 -> 0.559 | C79: ='STAGE-STORAGE'!$B$104+(2*A79*BASIN_DESIGN!$C$26) -> 222.3750629 | D79: ='STAGE-STORAGE'!$C$104+(2*A79*BASIN_DESIGN!$C$26) -> 98.16850177 | E79: 21830.22676 | F79: 468.9054807 | G79: =(1/6)*(A79)*(C79*D79+(C79+'STAGE-STORAGE'!$B$104)*(D79+'STAGE-STORAGE'!$C$104)+('STAGE-STORAGE'!$B$104*'STAGE-STORAGE'!$C$104)) -> 13971.93579 | H79: =BASIN_DESIGN!$H$21 -> 682.2094035 | I79: 0.687333652 | J79: 55.23711749
A80: =A79-(($A$5-BASIN_DESIGN!$C$27)/100) -> 0.6375 | B80: =A80-BASIN_DESIGN!$C$27 -> 0.5375 | C80: ='STAGE-STORAGE'!$B$104+(2*A80*BASIN_DESIGN!$C$26) -> 222.2460629 | D80: ='STAGE-STORAGE'!$C$104+(2*A80*BASIN_DESIGN!$C$26) -> 98.03950177 | E80: 21788.89328 | F80: 468.0171687 | G80: =(1/6)*(A80)*(C80*D80+(C80+'STAGE-STORAGE'!$B$104)*(D80+'STAGE-STORAGE'!$C$104)+('STAGE-STORAGE'!$B$104*'STAGE-STORAGE'!$C$104)) -> 13503.03031 | H80: =BASIN_DESIGN!$H$21 -> 682.2094035 | I80: 0.6860315416 | J80: 55.92314903
A81: =A80-(($A$5-BASIN_DESIGN!$C$27)/100) -> 0.616 | B81: =A81-BASIN_DESIGN!$C$27 -> 0.516 | C81: ='STAGE-STORAGE'!$B$104+(2*A81*BASIN_DESIGN!$C$26) -> 222.1170629 | D81: ='STAGE-STORAGE'!$C$104+(2*A81*BASIN_DESIGN!$C$26) -> 97.91050177 | E81: 21747.59308 | F81: 467.1295723 | G81: =(1/6)*(A81)*(C81*D81+(C81+'STAGE-STORAGE'!$B$104)*(D81+'STAGE-STORAGE'!$C$104)+('STAGE-STORAGE'!$B$104*'STAGE-STORAGE'!$C$104)) -> 13035.01314 | H81: =BASIN_DESIGN!$H$21 -> 682.2094035 | I81: 0.68473048 | J81: 56.60787951
A82: =A81-(($A$5-BASIN_DESIGN!$C$27)/100) -> 0.5945 | B82: =A82-BASIN_DESIGN!$C$27 -> 0.4945 | C82: ='STAGE-STORAGE'!$B$104+(2*A82*BASIN_DESIGN!$C$26) -> 221.9880629 | D82: ='STAGE-STORAGE'!$C$104+(2*A82*BASIN_DESIGN!$C$26) -> 97.78150177 | E82: 21706.32617 | F82: 466.2426914 | G82: =(1/6)*(A82)*(C82*D82+(C82+'STAGE-STORAGE'!$B$104)*(D82+'STAGE-STORAGE'!$C$104)+('STAGE-STORAGE'!$B$104*'STAGE-STORAGE'!$C$104)) -> 12567.88357 | H82: =BASIN_DESIGN!$H$21 -> 682.2094035 | I82: 0.6834304673 | J82: 57.29130998
A83: =A82-(($A$5-BASIN_DESIGN!$C$27)/100) -> 0.573 | B83: =A83-BASIN_DESIGN!$C$27 -> 0.473 | C83: ='STAGE-STORAGE'!$B$104+(2*A83*BASIN_DESIGN!$C$26) -> 221.8590629 | D83: ='STAGE-STORAGE'!$C$104+(2*A83*BASIN_DESIGN!$C$26) -> 97.65250177 | E83: 21665.09253 | F83: 465.356526 | G83: =(1/6)*(A83)*(C83*D83+(C83+'STAGE-STORAGE'!$B$104)*(D83+'STAGE-STORAGE'!$C$104)+('STAGE-STORAGE'!$B$104*'STAGE-STORAGE'!$C$104)) -> 12101.64087 | H83: =BASIN_DESIGN!$H$21 -> 682.2094035 | I83: 0.6821315035 | J83: 57.97344148
A84: =A83-(($A$5-BASIN_DESIGN!$C$27)/100) -> 0.5515 | B84: =A84-BASIN_DESIGN!$C$27 -> 0.4515 | C84: ='STAGE-STORAGE'!$B$104+(2*A84*BASIN_DESIGN!$C$26) -> 221.7300629 | D84: ='STAGE-STORAGE'!$C$104+(2*A84*BASIN_DESIGN!$C$26) -> 97.52350177 | E84: 21623.89218 | F84: 464.4710763 | G84: =(1/6)*(A84)*(C84*D84+(C84+'STAGE-STORAGE'!$B$104)*(D84+'STAGE-STORAGE'!$C$104)+('STAGE-STORAGE'!$B$104*'STAGE-STORAGE'!$C$104)) -> 11636.28435 | H84: =BASIN_DESIGN!$H$21 -> 682.2094035 | I84: 0.6808335885 | J84: 58.65427507
A85: =A84-(($A$5-BASIN_DESIGN!$C$27)/100) -> 0.53 | B85: =A85-BASIN_DESIGN!$C$27 -> 0.43 | C85: ='STAGE-STORAGE'!$B$104+(2*A85*BASIN_DESIGN!$C$26) -> 221.6010629 | D85: ='STAGE-STORAGE'!$C$104+(2*A85*BASIN_DESIGN!$C$26) -> 97.39450177 | E85: 21582.72511 | F85: 463.5863421 | G85: =(1/6)*(A85)*(C85*D85+(C85+'STAGE-STORAGE'!$B$104)*(D85+'STAGE-STORAGE'!$C$104)+('STAGE-STORAGE'!$B$104*'STAGE-STORAGE'!$C$104)) -> 11171.81327 | H85: =BASIN_DESIGN!$H$21 -> 682.2094035 | I85: 0.6795367225 | J85: 59.33381179
A86: =A85-(($A$5-BASIN_DESIGN!$C$27)/100) -> 0.5085 | B86: =A86-BASIN_DESIGN!$C$27 -> 0.4085 | C86: ='STAGE-STORAGE'!$B$104+(2*A86*BASIN_DESIGN!$C$26) -> 221.4720629 | D86: ='STAGE-STORAGE'!$C$104+(2*A86*BASIN_DESIGN!$C$26) -> 97.26550177 | E86: 21541.59133 | F86: 462.7023235 | G86: =(1/6)*(A86)*(C86*D86+(C86+'STAGE-STORAGE'!$B$104)*(D86+'STAGE-STORAGE'!$C$104)+('STAGE-STORAGE'!$B$104*'STAGE-STORAGE'!$C$104)) -> 10708.22693 | H86: =BASIN_DESIGN!$H$21 -> 682.2094035 | I86: 0.6782409054 | J86: 60.0120527
A87: =A86-(($A$5-BASIN_DESIGN!$C$27)/100) -> 0.487 | B87: =A87-BASIN_DESIGN!$C$27 -> 0.387 | C87: ='STAGE-STORAGE'!$B$104+(2*A87*BASIN_DESIGN!$C$26) -> 221.3430629 | D87: ='STAGE-STORAGE'!$C$104+(2*A87*BASIN_DESIGN!$C$26) -> 97.13650177 | E87: 21500.49082 | F87: 461.8190204 | G87: =(1/6)*(A87)*(C87*D87+(C87+'STAGE-STORAGE'!$B$104)*(D87+'STAGE-STORAGE'!$C$104)+('STAGE-STORAGE'!$B$104*'STAGE-STORAGE'!$C$104)) -> 10245.52461 | H87: =BASIN_DESIGN!$H$21 -> 682.2094035 | I87: 0.6769461371 | J87: 60.68899884
A88: =A87-(($A$5-BASIN_DESIGN!$C$27)/100) -> 0.4655 | B88: =A88-BASIN_DESIGN!$C$27 -> 0.3655 | C88: ='STAGE-STORAGE'!$B$104+(2*A88*BASIN_DESIGN!$C$26) -> 221.2140629 | D88: ='STAGE-STORAGE'!$C$104+(2*A88*BASIN_DESIGN!$C$26) -> 97.00750177 | E88: 21459.4236 | F88: 460.9364329 | G88: =(1/6)*(A88)*(C88*D88+(C88+'STAGE-STORAGE'!$B$104)*(D88+'STAGE-STORAGE'!$C$104)+('STAGE-STORAGE'!$B$104*'STAGE-STORAGE'!$C$104)) -> 9783.705586 | H88: =BASIN_DESIGN!$H$21 -> 682.2094035 | I88: 0.6756524178 | J88: 61.36465125
A89: =A88-(($A$5-BASIN_DESIGN!$C$27)/100) -> 0.444 | B89: =A89-BASIN_DESIGN!$C$27 -> 0.344 | C89: ='STAGE-STORAGE'!$B$104+(2*A89*BASIN_DESIGN!$C$26) -> 221.0850629 | D89: ='STAGE-STORAGE'!$C$104+(2*A89*BASIN_DESIGN!$C$26) -> 96.87850177 | E89: 21418.38966 | F89: 460.0545609 | G89: =(1/6)*(A89)*(C89*D89+(C89+'STAGE-STORAGE'!$B$104)*(D89+'STAGE-STORAGE'!$C$104)+('STAGE-STORAGE'!$B$104*'STAGE-STORAGE'!$C$104)) -> 9322.769153 | H89: =BASIN_DESIGN!$H$21 -> 682.2094035 | I89: 0.6743597473 | J89: 62.039011
A90: =A89-(($A$5-BASIN_DESIGN!$C$27)/100) -> 0.4225 | B90: =A90-BASIN_DESIGN!$C$27 -> 0.3225 | C90: ='STAGE-STORAGE'!$B$104+(2*A90*BASIN_DESIGN!$C$26) -> 220.9560629 | D90: ='STAGE-STORAGE'!$C$104+(2*A90*BASIN_DESIGN!$C$26) -> 96.74950177 | E90: 21377.389 | F90: 459.1734045 | G90: =(1/6)*(A90)*(C90*D90+(C90+'STAGE-STORAGE'!$B$104)*(D90+'STAGE-STORAGE'!$C$104)+('STAGE-STORAGE'!$B$104*'STAGE-STORAGE'!$C$104)) -> 8862.714592 | H90: =BASIN_DESIGN!$H$21 -> 682.2094035 | I90: 0.6730681257 | J90: 62.71207913
A91: =A90-(($A$5-BASIN_DESIGN!$C$27)/100) -> 0.401 | B91: =A91-BASIN_DESIGN!$C$27 -> 0.301 | C91: ='STAGE-STORAGE'!$B$104+(2*A91*BASIN_DESIGN!$C$26) -> 220.8270629 | D91: ='STAGE-STORAGE'!$C$104+(2*A91*BASIN_DESIGN!$C$26) -> 96.62050177 | E91: 21336.42162 | F91: 458.2929637 | G91: =(1/6)*(A91)*(C91*D91+(C91+'STAGE-STORAGE'!$B$104)*(D91+'STAGE-STORAGE'!$C$104)+('STAGE-STORAGE'!$B$104*'STAGE-STORAGE'!$C$104)) -> 8403.541187 | H91: =BASIN_DESIGN!$H$21 -> 682.2094035 | I91: 0.6717775531 | J91: 63.38385668
A92: =A91-(($A$5-BASIN_DESIGN!$C$27)/100) -> 0.3795 | B92: =A92-BASIN_DESIGN!$C$27 -> 0.2795 | C92: ='STAGE-STORAGE'!$B$104+(2*A92*BASIN_DESIGN!$C$26) -> 220.6980629 | D92: ='STAGE-STORAGE'!$C$104+(2*A92*BASIN_DESIGN!$C$26) -> 96.49150177 | E92: 21295.48753 | F92: 457.4132385 | G92: =(1/6)*(A92)*(C92*D92+(C92+'STAGE-STORAGE'!$B$104)*(D92+'STAGE-STORAGE'!$C$104)+('STAGE-STORAGE'!$B$104*'STAGE-STORAGE'!$C$104)) -> 7945.248224 | H92: =BASIN_DESIGN!$H$21 -> 682.2094035 | I92: 0.6704880293 | J92: 64.05434471
A93: =A92-(($A$5-BASIN_DESIGN!$C$27)/100) -> 0.358 | B93: =A93-BASIN_DESIGN!$C$27 -> 0.258 | C93: ='STAGE-STORAGE'!$B$104+(2*A93*BASIN_DESIGN!$C$26) -> 220.5690629 | D93: ='STAGE-STORAGE'!$C$104+(2*A93*BASIN_DESIGN!$C$26) -> 96.36250177 | E93: 21254.58671 | F93: 456.5342288 | G93: =(1/6)*(A93)*(C93*D93+(C93+'STAGE-STORAGE'!$B$104)*(D93+'STAGE-STORAGE'!$C$104)+('STAGE-STORAGE'!$B$104*'STAGE-STORAGE'!$C$104)) -> 7487.834985 | H93: =BASIN_DESIGN!$H$21 -> 682.2094035 | I93: 0.6691995544 | J93: 64.72354426
A94: =A93-(($A$5-BASIN_DESIGN!$C$27)/100) -> 0.3365 | B94: =A94-BASIN_DESIGN!$C$27 -> 0.2365 | C94: ='STAGE-STORAGE'!$B$104+(2*A94*BASIN_DESIGN!$C$26) -> 220.4400629 | D94: ='STAGE-STORAGE'!$C$104+(2*A94*BASIN_DESIGN!$C$26) -> 96.23350177 | E94: 21213.71918 | F94: 455.6559346 | G94: =(1/6)*(A94)*(C94*D94+(C94+'STAGE-STORAGE'!$B$104)*(D94+'STAGE-STORAGE'!$C$104)+('STAGE-STORAGE'!$B$104*'STAGE-STORAGE'!$C$104)) -> 7031.300756 | H94: =BASIN_DESIGN!$H$21 -> 682.2094035 | I94: 0.6679121283 | J94: 65.39145639
A95: =A94-(($A$5-BASIN_DESIGN!$C$27)/100) -> 0.315 | B95: =A95-BASIN_DESIGN!$C$27 -> 0.215 | C95: ='STAGE-STORAGE'!$B$104+(2*A95*BASIN_DESIGN!$C$26) -> 220.3110629 | D95: ='STAGE-STORAGE'!$C$104+(2*A95*BASIN_DESIGN!$C$26) -> 96.10450177 | E95: 21172.88493 | F95: 454.7783561 | G95: =(1/6)*(A95)*(C95*D95+(C95+'STAGE-STORAGE'!$B$104)*(D95+'STAGE-STORAGE'!$C$104)+('STAGE-STORAGE'!$B$104*'STAGE-STORAGE'!$C$104)) -> 6575.644822 | H95: =BASIN_DESIGN!$H$21 -> 682.2094035 | I95: 0.6666257512 | J95: 66.05808214
A96: =A95-(($A$5-BASIN_DESIGN!$C$27)/100) -> 0.2935 | B96: =A96-BASIN_DESIGN!$C$27 -> 0.1935 | C96: ='STAGE-STORAGE'!$B$104+(2*A96*BASIN_DESIGN!$C$26) -> 220.1820629 | D96: ='STAGE-STORAGE'!$C$104+(2*A96*BASIN_DESIGN!$C$26) -> 95.97550177 | E96: 21132.08397 | F96: 453.9014931 | G96: =(1/6)*(A96)*(C96*D96+(C96+'STAGE-STORAGE'!$B$104)*(D96+'STAGE-STORAGE'!$C$104)+('STAGE-STORAGE'!$B$104*'STAGE-STORAGE'!$C$104)) -> 6120.866466 | H96: =BASIN_DESIGN!$H$21 -> 682.2094035 | I96: 0.665340423 | J96: 66.72342257
A97: =A96-(($A$5-BASIN_DESIGN!$C$27)/100) -> 0.272 | B97: =A97-BASIN_DESIGN!$C$27 -> 0.172 | C97: ='STAGE-STORAGE'!$B$104+(2*A97*BASIN_DESIGN!$C$26) -> 220.0530629 | D97: ='STAGE-STORAGE'!$C$104+(2*A97*BASIN_DESIGN!$C$26) -> 95.84650177 | E97: 21091.31628 | F97: 453.0253456 | G97: =(1/6)*(A97)*(C97*D97+(C97+'STAGE-STORAGE'!$B$104)*(D97+'STAGE-STORAGE'!$C$104)+('STAGE-STORAGE'!$B$104*'STAGE-STORAGE'!$C$104)) -> 5666.964973 | H97: =BASIN_DESIGN!$H$21 -> 682.2094035 | I97: 0.6640561437 | J97: 67.38747871
A98: =A97-(($A$5-BASIN_DESIGN!$C$27)/100) -> 0.2505 | B98: =A98-BASIN_DESIGN!$C$27 -> 0.1505 | C98: ='STAGE-STORAGE'!$B$104+(2*A98*BASIN_DESIGN!$C$26) -> 219.9240629 | D98: ='STAGE-STORAGE'!$C$104+(2*A98*BASIN_DESIGN!$C$26) -> 95.71750177 | E98: 21050.58188 | F98: 452.1499137 | G98: =(1/6)*(A98)*(C98*D98+(C98+'STAGE-STORAGE'!$B$104)*(D98+'STAGE-STORAGE'!$C$104)+('STAGE-STORAGE'!$B$104*'STAGE-STORAGE'!$C$104)) -> 5213.939627 | H98: =BASIN_DESIGN!$H$21 -> 682.2094035 | I98: 0.6627729132 | J98: 68.05025162
A99: =A98-(($A$5-BASIN_DESIGN!$C$27)/100) -> 0.229 | B99: =A99-BASIN_DESIGN!$C$27 -> 0.129 | C99: ='STAGE-STORAGE'!$B$104+(2*A99*BASIN_DESIGN!$C$26) -> 219.7950629 | D99: ='STAGE-STORAGE'!$C$104+(2*A99*BASIN_DESIGN!$C$26) -> 95.58850177 | E99: 21009.88076 | F99: 451.2751974 | G99: =(1/6)*(A99)*(C99*D99+(C99+'STAGE-STORAGE'!$B$104)*(D99+'STAGE-STORAGE'!$C$104)+('STAGE-STORAGE'!$B$104*'STAGE-STORAGE'!$C$104)) -> 4761.789713 | H99: =BASIN_DESIGN!$H$21 -> 682.2094035 | I99: 0.6614907316 | J99: 68.71174235
A100: =A99-(($A$5-BASIN_DESIGN!$C$27)/100) -> 0.2075 | B100: =A100-BASIN_DESIGN!$C$27 -> 0.1075 | C100: ='STAGE-STORAGE'!$B$104+(2*A100*BASIN_DESIGN!$C$26) -> 219.6660629 | D100: ='STAGE-STORAGE'!$C$104+(2*A100*BASIN_DESIGN!$C$26) -> 95.45950177 | E100: 20969.21292 | F100: 450.4011967 | G100: =(1/6)*(A100)*(C100*D100+(C100+'STAGE-STORAGE'!$B$104)*(D100+'STAGE-STORAGE'!$C$104)+('STAGE-STORAGE'!$B$104*'STAGE-STORAGE'!$C$104)) -> 4310.514516 | H100: =BASIN_DESIGN!$H$21 -> 682.2094035 | I100: 0.660209599 | J100: 69.37195195
A101: =A100-(($A$5-BASIN_DESIGN!$C$27)/100) -> 0.186 | B101: =A101-BASIN_DESIGN!$C$27 -> 0.086 | C101: ='STAGE-STORAGE'!$B$104+(2*A101*BASIN_DESIGN!$C$26) -> 219.5370629 | D101: ='STAGE-STORAGE'!$C$104+(2*A101*BASIN_DESIGN!$C$26) -> 95.33050177 | E101: 20928.57836 | F101: 449.5279115 | G101: =(1/6)*(A101)*(C101*D101+(C101+'STAGE-STORAGE'!$B$104)*(D101+'STAGE-STORAGE'!$C$104)+('STAGE-STORAGE'!$B$104*'STAGE-STORAGE'!$C$104)) -> 3860.113319 | H101: =BASIN_DESIGN!$H$21 -> 682.2094035 | I101: 0.6589295152 | J101: 70.03088147
A102: =A101-(($A$5-BASIN_DESIGN!$C$27)/100) -> 0.1645 | B102: =A102-BASIN_DESIGN!$C$27 -> 0.0645 | C102: ='STAGE-STORAGE'!$B$104+(2*A102*BASIN_DESIGN!$C$26) -> 219.4080629 | D102: ='STAGE-STORAGE'!$C$104+(2*A102*BASIN_DESIGN!$C$26) -> 95.20150177 | E102: 20887.97709 | F102: 448.6553419 | G102: =(1/6)*(A102)*(C102*D102+(C102+'STAGE-STORAGE'!$B$104)*(D102+'STAGE-STORAGE'!$C$104)+('STAGE-STORAGE'!$B$104*'STAGE-STORAGE'!$C$104)) -> 3410.585408 | H102: =BASIN_DESIGN!$H$21 -> 682.2094035 | I102: 0.6576504803 | J102: 70.68853195
A103: =A102-(($A$5-BASIN_DESIGN!$C$27)/100) -> 0.143 | B103: =A103-BASIN_DESIGN!$C$27 -> 0.043 | C103: ='STAGE-STORAGE'!$B$104+(2*A103*BASIN_DESIGN!$C$26) -> 219.2790629 | D103: ='STAGE-STORAGE'!$C$104+(2*A103*BASIN_DESIGN!$C$26) -> 95.07250177 | E103: 20847.4091 | F103: 447.7834878 | G103: =(1/6)*(A103)*(C103*D103+(C103+'STAGE-STORAGE'!$B$104)*(D103+'STAGE-STORAGE'!$C$104)+('STAGE-STORAGE'!$B$104*'STAGE-STORAGE'!$C$104)) -> 2961.930066 | H103: =BASIN_DESIGN!$H$21 -> 682.2094035 | I103: 0.6563724943 | J103: 71.34490444
A104: =A103-(($A$5-BASIN_DESIGN!$C$27)/100) -> 0.1215 | B104: =A104-BASIN_DESIGN!$C$27 -> 0.0215 | C104: ='STAGE-STORAGE'!$B$104+(2*A104*BASIN_DESIGN!$C$26) -> 219.1500629 | D104: ='STAGE-STORAGE'!$C$104+(2*A104*BASIN_DESIGN!$C$26) -> 94.94350177 | E104: 20806.87438 | F104: 446.9123493 | G104: =(1/6)*(A104)*(C104*D104+(C104+'STAGE-STORAGE'!$B$104)*(D104+'STAGE-STORAGE'!$C$104)+('STAGE-STORAGE'!$B$104*'STAGE-STORAGE'!$C$104)) -> 2514.146578 | H104: =BASIN_DESIGN!$H$21 -> 682.2094035 | I104: 0.6550955572 | J104: 72
A105: =A104-(($A$5-BASIN_DESIGN!$C$27)/100) -> 0.1 | B105: =A105-BASIN_DESIGN!$C$27 -> -3.663735981e-15 | C105: ='STAGE-STORAGE'!$B$104+(2*A105*BASIN_DESIGN!$C$26) -> 219.0210629 | D105: ='STAGE-STORAGE'!$C$104+(2*A105*BASIN_DESIGN!$C$26) -> 94.81450177 | E105: 20766.37296
I106: =SUM(I5:I104) -> 72

Sheet REGULATORY
A1: Regulatory Guidance
C2: ALDOT | D2: AL-SWCC | E2: NCDOT | F2: NONE
A3: Storage Sizing
A4: Volume Design Storm Event | C4: 2-yr, 24-hr | D4: - | E4: - | F4: -
A5: Spillway Design Storm Event | C5: 10-yr, 24-hr | D5: 10-yr, 24-hr | E5: 10-yr, 24-hr | F5: -
A6: Min. Volume Requirement | B6: =IF(BASIN_DESIGN!$C$11="SI", "m³/ha","ft³/ac") -> ft³/ac | C6: =IF(BASIN_DESIGN!$C$11="SI",251.9,3600) -> 3600 | D6: =IF(BASIN_DESIGN!$C$11="SI",251.9,3600) -> 3600 | E6: =IF(BASIN_DESIGN!$C$11="SI",125.95,1800) -> 1800 | F6: -
A7: Min. Surface Area Requirement | B7: =IF(BASIN_DESIGN!$C$11="SI", "m²/m³","ft²/ft³") -> ft²/ft³ | C7: - | D7: 435 | E7: 325 | F7: -
A8: Max. Contributing Drainage Area | B8: =IF(BASIN_DESIGN!$C$11="SI","ha","ac") -> ac | C8: =IF(BASIN_DESIGN!$C$11="SI",4.05,10) -> 10 | D8: =IF(BASIN_DESIGN!$C$11="SI",40.5,100) -> 100 | E8: =IF(BASIN_DESIGN!$C$11="SI",4.05,10) -> 10 | F8: -
A9: Recommended Drainage Area | B9: =IF(BASIN_DESIGN!$C$11="SI","ha","ac") -> ac | C9: =IF(BASIN_DESIGN!$C$11="SI",0.81,2) -> 2 | D9: =IF(BASIN_DESIGN!$C$11="SI",4.05,10) -> 10 | E9: - | F9: -
A10: Geometry
A11: Recommended L:W Ratio | B11: =IF(BASIN_DESIGN!$C$11="SI", "m/m","ft/ft") -> ft/ft | C11: 10 | D11: - | E11: - | F11: -
A12: Max. L:W Ratio | B12: =IF(BASIN_DESIGN!$C$11="SI", "m/m","ft/ft") -> ft/ft | C12: - | D12: - | E12: 6 | F12: -
A13: Min. L:W Ratio | B13: =IF(BASIN_DESIGN!$C$11="SI", "m/m","ft/ft") -> ft/ft | C13: 2 | D13: 2 | E13: 2 | F13: -
A14: Min. Side Slopes H:V | B14: =IF(BASIN_DESIGN!$C$11="SI", "m/m","ft/ft") -> ft/ft | C14: 3 | D14: 2 | E14: 1.5 | F14: -
A15: Min. Basin Width:Depth Ratio | B15: =IF(BASIN_DESIGN!$C$11="SI", "m/m","ft/ft") -> ft/ft | C15: - | D15: - | E15: 3 | F15: -
A16: Recommended Live Storage Depth | B16: =IF(BASIN_DESIGN!$C$11="SI", "m/m","ft/ft") -> ft/ft | C16: 4 | D16: - | E16: - | F16: -
A17: Min. Dead Storage Depth | B17: =IF(BASIN_DESIGN!$C$11="SI", "m","ft") -> ft | C17: 0 | D17: - | E17: =IF(BASIN_DESIGN!$C$11="SI",0.305,1) -> 1 | F17: -
A18: Max. Dead Storage Depth | B18: =IF(BASIN_DESIGN!$C$11="SI", "m","ft") -> ft | C18: =IF(BASIN_DESIGN!$C$11="SI",0.305,1) -> 1 | D18: - | E18: - | F18: -
A19: Min. Total Depth | B19: =IF(BASIN_DESIGN!$C$11="SI", "m","ft") -> ft | C19: =IF(BASIN_DESIGN!$C$11="SI",0.61,2) -> 2 | D19: =IF(BASIN_DESIGN!$C$11="SI",0.61,2) -> 2 | E19: =IF(BASIN_DESIGN!$C$11="SI",0.61,2) -> 2 | F19: -
A20: Max. Total Depth | B20: =IF(BASIN_DESIGN!$C$11="SI", "m","ft") -> ft | C20: =IF(BASIN_DESIGN!$C$11="SI",1.52,5) -> 5 | D20: - | E20: - | F20: -
A21: Spillway & Surface Skimmer
A22: Recommended Spillway Length/Flow Ratio | B22: =IF(BASIN_DESIGN!$C$11="SI", "m/m³/s","ft/ft³/s") -> ft/ft³/s | C22: - | D22: - | E22: =1/0.4 -> 2.5 | F22: -
A23: Min. Spillway Length | B23: =IF(BASIN_DESIGN!$C$11="SI", "m","ft") -> ft | C23: - | D23: =IF(BASIN_DESIGN!$C$11="SI",3.05,10) -> 10 | E23: =IF(BASIN_DESIGN!$C$11="SI",1.22,4) -> 4 | F23: -
A24: Freeboard above spillway flow | B24: =IF(BASIN_DESIGN!$C$11="SI", "m","ft") -> ft | C24: =IF(BASIN_DESIGN!$C$11="SI",0.61,2) -> 2 | D24: =IF(BASIN_DESIGN!$C$11="SI",0.305,1) -> 1 | E24: =IF(BASIN_DESIGN!$C$11="SI",0.305,1) -> 1 | F24: -
A25: Min. Detention Time | B25: hrs | C25: - | D25: 48 | E25: 48 | F25: -
A26: Max. Detention Time | B26: hrs | C26: 72 | D26: 120 | E26: 72 | F26: -
A27: Baffles
A28: No. of Bays | C28: 4 | D28: 4 | E28: 4 | F28: -
A29: Baffle T-Post Spacing | B29: =IF(BASIN_DESIGN!$C$11="SI", "m","ft") -> ft | C29: =IF(BASIN_DESIGN!$C$11="SI",1.22,4) -> 4 | D29: =IF(BASIN_DESIGN!$C$11="SI",3.05,10) -> 10 | E29: =IF(BASIN_DESIGN!$C$11="SI",1.22,4) -> 4 | F29: -
A30: T-Post Stake Depth | B30: =IF(BASIN_DESIGN!$C$11="SI", "m","ft") -> ft | C30: =IF(BASIN_DESIGN!$C$11="SI",0.61,2) -> 2 | D30: =IF(BASIN_DESIGN!$C$11="SI",0.61,2) -> 2 | E30: =IF(BASIN_DESIGN!$C$11="SI",0.61,2) -> 2 | F30: -
A31: Maintenance Requirements
A32: Maintenance Required When: | C32: Sediment Reaches 1/3 Height of Bay 1 Baffle | D32: Sediment Reaches 1/2 Volume of Basin | E32: - | F32: -
F33: -
A34: Other Notes
C35: - | D35: - | E35: - | F35: -
F36: -
A37: Reference | C37: Alabama Department of Transportation [ALDOT] (2014). "Standard Best Management Practices". Montgomery, AL.; ALDOT (2010). "Sedimentation Basin Recommendations". Montgomery, AL. | D37: Alabama Soil and Water Conservation Committee (2014). "Alabama Handbook for Erosion Control, Sediment Control and Stormwater Management on Construction Sites and Urban Areas."Montgomery, AL. | E37: North Carolina Department of Transportation (2015). "NCDOT Erosion & Sediment Control Manual". Raleigh, NC.
A51: Manual
A52: Regulatory
A53: 2-Yr, 24-Hr
A55: U.S.
A56: SI
A58: ="Stage ("&B20&")" -> Stage (ft)
A59: ="Storage ("&'STAGE-STORAGE'!G3&")" -> Storage (ft/ac)
A61: =ROUND(BASIN_DESIGN!H38,1) -> 54.6
A64: =BASIN_DESIGN!C36&" "&BASIN_DESIGN!D36 -> 2 ft | B64: freeboard
A65: =BASIN_DESIGN!H25&" "&BASIN_DESIGN!I25 -> 2.25 ft | B65: storage depth
A66: =ROUND(BASIN_DESIGN!C39,2) -> 0.75 | B66: spillway height
A67: =A66&" "&BASIN_DESIGN!D39 -> 0.75 ft | B67: spillway height
A68: =BASIN_DESIGN!C35&" "&BASIN_DESIGN!D35 -> 10 ft | B68: spillway length
A69: =ROUND(BASIN_DESIGN!C30,0) -> 124
A70: =A69&" "&BASIN_DESIGN!D30 -> 124 ft | B70: top width
A71: =ROUND(BASIN_DESIGN!H30,0) -> 76613
A72: =A71&" "&BASIN_DESIGN!I30 -> 76613 ft³ | B72: free vol
A73: =ROUND(BASIN_DESIGN!H28,0) -> 49119
A74: =A73&" "&BASIN_DESIGN!I28 -> 49119 ft³ | B74: live storage
A75: =ROUND(BASIN_DESIGN!H27,0) -> 2067
A76: =A75&" "&BASIN_DESIGN!I27 -> 2067 ft³ | B76: dead storage
A77: =ROUND(BASIN_DESIGN!C32,0) -> 94
A78: =A77&" "&BASIN_DESIGN!D32 -> 94 ft | B78: bottom width
A79: =BASIN_DESIGN!C36&" "&BASIN_DESIGN!D36 -> 2 ft | B79: freeboard
A80: =ROUND(BASIN_DESIGN!C39,2) -> 0.75
A81: =A80&" "&BASIN_DESIGN!D39 -> 0.75 ft | B81: spillway
A82: =BASIN_DESIGN!C28&" "&BASIN_DESIGN!D28 -> 2.15 ft | B82: live stage
A83: =BASIN_DESIGN!C27&" "&BASIN_DESIGN!D27 -> 0.1 ft | B83: dead stage
A84: =BASIN_DESIGN!C26&":1" -> 3:1 | B84: H:V
A85: =ROUND(BASIN_DESIGN!C29,0) -> 248
A86: =A85&" "&BASIN_DESIGN!D29 -> 248 ft | B86: top length
A87: =ROUND(BASIN_DESIGN!H38,0) -> 55
A88: =A87&" "&BASIN_DESIGN!I38 -> 55 ft | B88: bay length
A89: =ROUND(BASIN_DESIGN!C31,0) -> 218
A90: =A89&" "&BASIN_DESIGN!D31 -> 218 ft | B90: bottom length
A91: =ROUND(BASIN_DESIGN!H41,2) -> 3
A92: =A91&" "&BASIN_DESIGN!I41 -> 3 ft | B92: baffle height

Sheet GIS_DATA
A1: 2-Yr, 24-Hr Rainfall & Soil CN (GIS DATA)
A2: Zip Code | B2: County | C2: State | D2: P (in.) | E2: P (cm) | F2: CN
A3: 00001 | B3: N Dillingham Census Area | C3: AK | D3: N/A | E3: N/A | F3: N/A
A4: 00002 | B4: Yukon Flats Nat Wildlife | C4: AK | D4: N/A | E4: N/A | F4: N/A
A5: 00003 | B5: Alaska Peninsula NWR | C5: AK | D5: N/A | E5: N/A | F5: N/A
A6: 00004 | B6: W Kenai Peninsula Boroug | C6: AK | D6: N/A | E6: N/A | F6: N/A
A7: 00005 | B7: N Lake and Peninsula Bor | C7: AK | D7: N/A | E7: N/A | F7: N/A
A8: 00006 | B8: Matanuska-Sustina Bor | C8: AK | D8: N/A | E8: N/A | F8: N/A
A9: 00007 | B9: Southerly North Slope Bo | C9: AK | D9: N/A | E9: N/A | F9: N/A
A10: 00009 | B10: Lake Clark National Pres | C10: AK | D10: N/A | E10: N/A | F10: N/A
A11: 00010 | B11: Yukon Delta Wilderness | C11: AK | D11: N/A | E11: N/A | F11: N/A
A12: 00011 | B12: Kenai Ntl Wildlife Ref | C12: AK | D12: N/A | E12: N/A | F12: N/A
A13: 00198 | B13: E Mncplty of Anchorage | C13: AK | D13: N/A | E13: N/A | F13: N/A
A14: 00601 | B14: Adjuntas | C14: PR | D14: N/A | E14: N/A | F14: N/A
A15: 00602 | B15: Aguada | C15: PR | D15: N/A | E15: N/A | F15: N/A
A16: 00603 | B16: Aguadilla | C16: PR | D16: N/A | E16: N/A | F16: N/A
A17: 00606 | B17: Maricao | C17: PR | D17: N/A | E17: N/A | F17: N/A
A18: 00610 | B18: Anasco | C18: PR | D18: N/A | E18: N/A | F18: N/A
A19: 00612 | B19: Arecibo | C19: PR | D19: N/A | E19: N/A | F19: N/A
A20: 00617 | B20: Barceloneta | C20: PR | D20: N/A | E20: N/A | F20: N/A
A21: 00623 | B21: Cabo Rojo | C21: PR | D21: N/A | E21: N/A | F21: N/A
A22: 00624 | B22: Penuelas | C22: PR | D22: N/A | E22: N/A | F22: N/A
A23: 00627 | B23: Camuy | C23: PR | D23: N/A | E23: N/A | F23: N/A
A24: 00631 | B24: Castaner | C24: PR | D24: N/A | E24: N/A | F24: N/A
A25: 00637 | B25: Sabana Grande | C25: PR | D25: N/A | E25: N/A | F25: N/A
A26: 00638 | B26: Ciales | C26: PR | D26: N/A | E26: N/A | F26: N/A
A27: 00641 | B27: Utuado | C27: PR | D27: N/A | E27: N/A | F27: N/A
A28: 00646 | B28: Dorado | C28: PR | D28: N/A | E28: N/A | F28: N/A
A29: 00647 | B29: Ensenada | C29: PR | D29: N/A | E29: N/A | F29: N/A
A30: 00650 | B30: Florida | C30: PR | D30: N/A | E30: N/A | F30: N/A
A31: 00653 | B31: Guanica | C31: PR | D31: N/A | E31: N/A | F31: N/A
A32: 00656 | B32: Guayanilla | C32: PR | D32: N/A | E32: N/A | F32: N/A
A33: 00659 | B33: Hatillo | C33: PR | D33: N/A | E33: N/A | F33: N/A
A34: 00660 | B34: Hormigueros | C34: PR | D34: N/A | E34: N/A | F34: N/A
A35: 00662 | B35: Isabela | C35: PR | D35: N/A | E35: N/A | F35: N/A
A36: 00664 | B36: Jayuya | C36: PR | D36: N/A | E36: N/A | F36: N/A
A37: 00667 | B37: Lajas | C37: PR | D37: N/A | E37: N/A | F37: N/A
A38: 00669 | B38: Lares | C38: PR | D38: N/A | E38: N/A | F38: N/A
A39: 00670 | B39: Las Marias | C39: PR | D39: N/A | E39: N/A | F39: N/A
A40: 00674 | B40: Manati | C40: PR | D40: N/A | E40: N/A | F40: N/A
A41: 00676 | B41: Moca | C41: PR | D41: N/A | E41: N/A | F41: N/A
A42: 00677 | B42: Rincon | C42: PR | D42: N/A | E42: N/A | F42: N/A
A43: 00678 | B43: Quebradillas | C43: PR | D43: N/A | E43: N/A | F43: N/A
A44: 00680 | B44: Mayaguez | C44: PR | D44: N/A | E44: N/A | F44: N/A
A45: 00682 | B45: Mayaguez | C45: PR | D45: N/A | E45: N/A | F45: N/A
A46: 00683 | B46: San German | C46: PR | D46: N/A | E46: N/A | F46: N/A
A47: 00685 | B47: San Sebastian | C47: PR | D47: N/A | E47: N/A | F47: N/A
A48: 00687 | B48: Morovis | C48: PR | D48: N/A | E48: N/A | F48: N/A
A49: 00690 | B49: San Antonio | C49: PR | D49: N/A | E49: N/A | F49: N/A
A50: 00692 | B50: Vega Alta | C50: PR | D50: N/A | E50: N/A | F50: N/A
A51: 00693 | B51: Vega Baja | C51: PR | D51: N/A | E51: N/A | F51: N/A
A52: 00698 | B52: Yauco | C52: PR | D52: N/A | E52: N/A | F52: N/A
A53: 00703 | B53: Aguas Buenas | C53: PR | D53: N/A | E53: N/A | F53: N/A
A54: 00704 | B54: Aguirre | C54: PR | D54: N/A | E54: N/A | F54: N/A
A55: 00705 | B55: Aibonito | C55: PR | D55: N/A | E55: N/A | F55: N/A
A56: 00707 | B56: Maunabo | C56: PR | D56: N/A | E56: N/A | F56: N/A
A57: 00714 | B57: Arroyo | C57: PR | D57: N/A | E57: N/A | F57: N/A
A58: 00715 | B58: Mercedita | C58: PR | D58: N/A | E58: N/A | F58: N/A
A59: 00716 | B59: Ponce | C59: PR | D59: N/A | E59: N/A | F59: N/A
A60: 00717 | B60: Ponce | C60: PR | D60: N/A | E60: N/A | F60: N/A
A61: 00718 | B61: Naguabo | C61: PR | D61: N/A | E61: N/A | F61: N/A
A62: 00719 | B62: Naranjito | C62: PR | D62: N/A | E62: N/A | F62: N/A
A63: 00720 | B63: Orocovis | C63: PR | D63: N/A | E63: N/A | F63: N/A
A64: 00723 | B64: Patillas | C64: PR | D64: N/A | E64: N/A | F64: N/A
A65: 00725 | B65: Caguas | C65: PR | D65: N/A | E65: N/A | F65: N/A
A66: 00727 | B66: Caguas | C66: PR | D66: N/A | E66: N/A | F66: N/A
A67: 00728 | B67: Ponce | C67: PR | D67: N/A | E67: N/A | F67: N/A
A68: 00729 | B68: Canovanas | C68: PR | D68: N/A | E68: N/A | F68: N/A
A69: 00730 | B69: Ponce | C69: PR | D69: N/A | E69: N/A | F69: N/A
A70: 00731 | B70: Ponce | C70: PR | D70: N/A | E70: N/A | F70: N/A
A71: 00735 | B71: Ceiba | C71: PR | D71: N/A | E71: N/A | F71: N/A
A72: 00736 | B72: Cayey | C72: PR | D72: N/A | E72: N/A | F72: N/A
A73: 00738 | B73: Fajardo | C73: PR | D73: N/A | E73: N/A | F73: N/A
A74: 00739 | B74: Cidra | C74: PR | D74: N/A | E74: N/A | F74: N/A
A75: 00740 | B75: Puerto Real | C75: PR | D75: N/A | E75: N/A | F75: N/A
A76: 00741 | B76: Punta Santiago | C76: PR | D76: N/A | E76: N/A | F76: N/A
A77: 00745 | B77: Rio Grande | C77: PR | D77: N/A | E77: N/A | F77: N/A
A78: 00751 | B78: Salinas | C78: PR | D78: N/A | E78: N/A | F78: N/A
A79: 00754 | B79: San Lorenzo | C79: PR | D79: N/A | E79: N/A | F79: N/A
A80: 00757 | B80: Santa Isabel | C80: PR | D80: N/A | E80: N/A | F80: N/A
A81: 00765 | B81: Vieques | C81: PR | D81: N/A | E81: N/A | F81: N/A
A82: 00766 | B82: Villalba | C82: PR | D82: N/A | E82: N/A | F82: N/A
A83: 00767 | B83: Yabucoa | C83: PR | D83: N/A | E83: N/A | F83: N/A
A84: 00769 | B84: Coamo | C84: PR | D84: N/A | E84: N/A | F84: N/A
A85: 00771 | B85: Las Piedras | C85: PR | D85: N/A | E85: N/A | F85: N/A
A86: 00772 | B86: Loiza | C86: PR | D86: N/A | E86: N/A | F86: N/A
A87: 00773 | B87: Luquillo | C87: PR | D87: N/A | E87: N/A | F87: N/A
A88: 00775 | B88: Culebra | C88: PR | D88: N/A | E88: N/A | F88: N/A
A89: 00777 | B89: Juncos | C89: PR | D89: N/A | E89: N/A | F89: N/A
A90: 00778 | B90: Gurabo | C90: PR | D90: N/A | E90: N/A | F90: N/A
A91: 00780 | B91: Coto Laurel | C91: PR | D91: N/A | E91: N/A | F91: N/A
A92: 00782 | B92: Comerio | C92: PR | D92: N/A | E92: N/A | F92: N/A
A93: 00783 | B93: Corozal | C93: PR | D93: N/A | E93: N/A | F93: N/A
A94: 00784 | B94: Guayama | C94: PR | D94: N/A | E94: N/A | F94: N/A
A95: 00791 | B95: Humacao | C95: PR | D95: N/A | E95: N/A | F95: N/A
A96: 00794 | B96: Barranquitas | C96: PR | D96: N/A | E96: N/A | F96: N/A
A97: 00795 | B97: Juana Diaz | C97: PR | D97: N/A | E97: N/A | F97: N/A
A98: 00802 | B98: St Thomas | C98: VI | D98: N/A | E98: N/A | F98: N/A
A99: 00820 | B99: Christiansted | C99: VI | D99: N/A | E99: N/A | F99: N/A
A100: 00830 | B100: St John | C100: VI | D100: N/A | E100: N/A | F100: N/A
A101: 00840 | B101: Frederiksted | C101: VI | D101: N/A | E101: N/A | F101: N/A
A102: 00850 | B102: Kingshill | C102: VI | D102: N/A | E102: N/A | F102: N/A
A103: 00901 | B103: San Juan | C103: PR | D103: N/A | E103: N/A | F103: N/A
A104: 00907 | B104: San Juan | C104: PR | D104: N/A | E104: N/A | F104: N/A
A105: 00909 | B105: San Juan | C105: PR | D105: N/A | E105: N/A | F105: N/A
A106: 00911 | B106: San Juan | C106: PR | D106: N/A | E106: N/A | F106: N/A
A107: 00912 | B107: San Juan | C107: PR | D107: N/A | E107: N/A | F107: N/A
A108: 00913 | B108: San Juan | C108: PR | D108: N/A | E108: N/A | F108: N/A
A109: 00915 | B109: San Juan | C109: PR | D109: N/A | E109: N/A | F109: N/A
A110: 00917 | B110: San Juan | C110: PR | D110: N/A | E110: N/A | F110: N/A
A111: 00918 | B111: San Juan | C111: PR | D111: N/A | E111: N/A | F111: N/A
A112: 00920 | B112: San Juan | C112: PR | D112: N/A | E112: N/A | F112: N/A
A113: 00921 | B113: San Juan | C113: PR | D113: N/A | E113: N/A | F113: N/A
A114: 00923 | B114: San Juan | C114: PR | D114: N/A | E114: N/A | F114: N/A
A115: 00924 | B115: San Juan | C115: PR | D115: N/A | E115: N/A | F115: N/A
A116: 00925 | B116: San Juan | C116: PR | D116: N/A | E116: N/A | F116: N/A
A117: 00926 | B117: San Juan | C117: PR | D117: N/A | E117: N/A | F117: N/A
A118: 00927 | B118: San Juan | C118: PR | D118: N/A | E118: N/A | F118: N/A
A119: 00934 | B119: Fort Buchanan | C119: PR | D119: N/A | E119: N/A | F119: N/A
A120: 00949 | B120: Toa Baja | C120: PR | D120: N/A | E120: N/A | F120: N/A
A121: 00952 | B121: Sabana Seca | C121: PR | D121: N/A | E121: N/A | F121: N/A
A122: 00953 | B122: Toa Alta | C122: PR | D122: N/A | E122: N/A | F122: N/A
A123: 00956 | B123: Bayamon | C123: PR | D123: N/A | E123: N/A | F123: N/A
A124: 00957 | B124: Bayamon | C124: PR | D124: N/A | E124: N/A | F124: N/A
A125: 00959 | B125: Bayamon | C125: PR | D125: N/A | E125: N/A | F125: N/A
A126: 00961 | B126: Bayamon | C126: PR | D126: N/A | E126: N/A | F126: N/A
A127: 00962 | B127: Catano | C127: PR | D127: N/A | E127: N/A | F127: N/A
A128: 00965 | B128: Guaynabo | C128: PR | D128: N/A | E128: N/A | F128: N/A
A129: 00966 | B129: Guaynabo | C129: PR | D129: N/A | E129: N/A | F129: N/A
A130: 00968 | B130: Guaynabo | C130: PR | D130: N/A | E130: N/A | F130: N/A
A131: 00969 | B131: Guaynabo | C131: PR | D131: N/A | E131: N/A | F131: N/A
A132: 00976 | B132: Trujillo Alto | C132: PR | D132: N/A | E132: N/A | F132: N/A
A133: 00979 | B133: Carolina | C133: PR | D133: N/A | E133: N/A | F133: N/A
A134: 00982 | B134: Carolina | C134: PR | D134: N/A | E134: N/A | F134: N/A
A135: 00983 | B135: Carolina | C135: PR | D135: N/A | E135: N/A | F135: N/A
A136: 00985 | B136: Carolina | C136: PR | D136: N/A | E136: N/A | F136: N/A
A137: 00987 | B137: Carolina | C137: PR | D137: N/A | E137: N/A | F137: N/A
A138: 03854 | B138: New Castle | C138: NH | D138: N/A | E138: N/A | F138: N/A
A139: 04013 | B139: Bustins Island | C139: ME | D139: N/A | E139: N/A | F139: N/A
A140: 04019 | B140: Cliff Island | C140: ME | D140: N/A | E140: N/A | F140: N/A
A141: 04109 | B141: Portland | C141: ME | D141: N/A | E141: N/A | F141: N/A
A142: 04549 | B142: Isle of Springs | C142: ME | D142: N/A | E142: N/A | F142: N/A
A143: 04570 | B143: Squirrel Island | C143: ME | D143: N/A | E143: N/A | F143: N/A
A144: 10044 | B144: New York | C144: NY | D144: N/A | E144: N/A | F144: N/A
A145: 77550 | B145: Galveston | C145: TX | D145: N/A | E145: N/A | F145: N/A
A146: 77551 | B146: Galveston | C146: TX | D146: N/A | E146: N/A | F146: N/A
A147: 92662 | B147: Newport Beach | C147: CA | D147: N/A | E147: N/A | F147: N/A
A148: 96701 | B148: Aiea | C148: HI | D148: N/A | E148: N/A | F148: N/A
A149: 96703 | B149: Anahola | C149: HI | D149: N/A | E149: N/A | F149: N/A
A150: 96704 | B150: Captain Cook | C150: HI | D150: N/A | E150: N/A | F150: N/A
A151: 96705 | B151: Eleele | C151: HI | D151: N/A | E151: N/A | F151: N/A
A152: 96706 | B152: Ewa Beach | C152: HI | D152: N/A | E152: N/A | F152: N/A
A153: 96707 | B153: Kapolei | C153: HI | D153: N/A | E153: N/A | F153: N/A
A154: 96708 | B154: Haiku | C154: HI | D154: N/A | E154: N/A | F154: N/A
A155: 96710 | B155: Hakalau | C155: HI | D155: N/A | E155: N/A | F155: N/A
A156: 96712 | B156: Haleiwa | C156: HI | D156: N/A | E156: N/A | F156: N/A
A157: 96713 | B157: Hana | C157: HI | D157: N/A | E157: N/A | F157: N/A
A158: 96716 | B158: Hanapepe | C158: HI | D158: N/A | E158: N/A | F158: N/A
A159: 96717 | B159: Hauula | C159: HI | D159: N/A | E159: N/A | F159: N/A
A160: 96718 | B160: Hawaii National Park | C160: HI | D160: N/A | E160: N/A | F160: N/A
A161: 96719 | B161: Hawi | C161: HI | D161: N/A | E161: N/A | F161: N/A
A162: 96720 | B162: Hilo | C162: HI | D162: N/A | E162: N/A | F162: N/A
A163: 96722 | B163: Princeville | C163: HI | D163: N/A | E163: N/A | F163: N/A
A164: 96725 | B164: Holualoa | C164: HI | D164: N/A | E164: N/A | F164: N/A
A165: 96726 | B165: Honaunau | C165: HI | D165: N/A | E165: N/A | F165: N/A
A166: 96727 | B166: Honokaa | C166: HI | D166: N/A | E166: N/A | F166: N/A
A167: 96728 | B167: Honomu | C167: HI | D167: N/A | E167: N/A | F167: N/A
A168: 96729 | B168: Hoolehua | C168: HI | D168: N/A | E168: N/A | F168: N/A
A169: 96730 | B169: Kaaawa | C169: HI | D169: N/A | E169: N/A | F169: N/A
A170: 96731 | B170: Kahuku | C170: HI | D170: N/A | E170: N/A | F170: N/A
A171: 96732 | B171: Kahului | C171: HI | D171: N/A | E171: N/A | F171: N/A
A172: 96734 | B172: Kailua | C172: HI | D172: N/A | E172: N/A | F172: N/A
A173: 96738 | B173: Waikoloa | C173: HI | D173: N/A | E173: N/A | F173: N/A
A174: 96740 | B174: Kailua Kona | C174: HI | D174: N/A | E174: N/A | F174: N/A
A175: 96741 | B175: Kalaheo | C175: HI | D175: N/A | E175: N/A | F175: N/A
A176: 96742 | B176: Kalaupapa | C176: HI | D176: N/A | E176: N/A | F176: N/A
A177: 96743 | B177: Kamuela | C177: HI | D177: N/A | E177: N/A | F177: N/A
A178: 96744 | B178: Kaneohe | C178: HI | D178: N/A | E178: N/A | F178: N/A
A179: 96746 | B179: Kapaa | C179: HI | D179: N/A | E179: N/A | F179: N/A
A180: 96747 | B180: Kaumakani | C180: HI | D180: N/A | E180: N/A | F180: N/A
A181: 96748 | B181: Kaunakakai | C181: HI | D181: N/A | E181: N/A | F181: N/A
A182: 96749 | B182: Keaau | C182: HI | D182: N/A | E182: N/A | F182: N/A
A183: 96750 | B183: Kealakekua | C183: HI | D183: N/A | E183: N/A | F183: N/A
A184: 96752 | B184: Kekaha | C184: HI | D184: N/A | E184: N/A | F184: N/A
A185: 96753 | B185: Kihei | C185: HI | D185: N/A | E185: N/A | F185: N/A
A186: 96754 | B186: Kilauea | C186: HI | D186: N/A | E186: N/A | F186: N/A
A187: 96755 | B187: Kapaau | C187: HI | D187: N/A | E187: N/A | F187: N/A
A188: 96756 | B188: Koloa | C188: HI | D188: N/A | E188: N/A | F188: N/A
A189: 96757 | B189: Kualapuu | C189: HI | D189: N/A | E189: N/A | F189: N/A
A190: 96760 | B190: Kurtistown | C190: HI | D190: N/A | E190: N/A | F190: N/A
A191: 96761 | B191: Lahaina | C191: HI | D191: N/A | E191: N/A | F191: N/A
A192: 96762 | B192: Laie | C192: HI | D192: N/A | E192: N/A | F192: N/A
A193: 96763 | B193: Lanai City | C193: HI | D193: N/A | E193: N/A | F193: N/A
A194: 96764 | B194: Laupahoehoe | C194: HI | D194: N/A | E194: N/A | F194: N/A
A195: 96766 | B195: Lihue | C195: HI | D195: N/A | E195: N/A | F195: N/A
A196: 96768 | B196: Makawao | C196: HI | D196: N/A | E196: N/A | F196: N/A
A197: 96769 | B197: Makaweli | C197: HI | D197: N/A | E197: N/A | F197: N/A
A198: 96770 | B198: Maunaloa | C198: HI | D198: N/A | E198: N/A | F198: N/A
A199: 96771 | B199: Mountain View | C199: HI | D199: N/A | E199: N/A | F199: N/A
A200: 96772 | B200: Naalehu | C200: HI | D200: N/A | E200: N/A | F200: N/A
... 4300 more rows
